Organisation Name,Organisation Code,Organisational Unit,Service Category Label,Procurement Category,Supplier Name,Supplier Other ID,Payment Date,Transaction Number,Amount (�),Purpose
Eden District Council,http://opendatacommunities.org/id/district-council/eden,Technical Services Manager,Emergency Planning and Works,Grounds Maint Contract additional works,AMEY PLC,TFE001,07/05/20,181216,3154.28,FRENCHFIELD ACCESS ROAD
Eden District Council,http://opendatacommunities.org/id/district-council/eden,Technical Services Manager,Administrative Buildings,Planned Maintenance,CENTRAL POWER SERVICES LTD,CEN002,07/05/20,181219,551.53,SUPPLY/FIT TEMP GAUAGE
Eden District Council,http://opendatacommunities.org/id/district-council/eden,Financial Services Manager,Emergency Planning and Works,Grants and contributions,THE RATE PAYER,40203715,01/05/20,181220,10000,COVID 19 SMALL BUSINESS GRANT
Eden District Council,http://opendatacommunities.org/id/district-council/eden,Financial Services Manager,Emergency Planning and Works,Grants and contributions,Ramblers Rest Nentside Barn Writers Cottage CA9 3NA,40221638,01/05/20,181221,10000,COVID 19 SMALL BUSINESS GRANT
Eden District Council,http://opendatacommunities.org/id/district-council/eden,Financial Services Manager,Emergency Planning and Works,Grants and contributions,THE RATE PAYER,40221140,01/05/20,181222,10000,COVID 19 SMALL BUSINESS GRANT
Eden District Council,http://opendatacommunities.org/id/district-council/eden,Financial Services Manager,Emergency Planning and Works,Grants and contributions,FRONT FOOT INVESTMENTS LIMITED,40219031,01/05/20,181223,10000,COVID 19 SMALL BUSINESS GRANT
Eden District Council,http://opendatacommunities.org/id/district-council/eden,Financial Services Manager,Emergency Planning and Works,Grants and contributions,Lazonby Estate Farms (Garthfolds Farmhouse),40236630,01/05/20,181224,10000,COVID 19 SMALL BUSINESS GRANT
Eden District Council,http://opendatacommunities.org/id/district-council/eden,Financial Services Manager,Emergency Planning and Works,Grants and contributions,Northern Stores Ltd,40206783,01/05/20,181225,10000,COVID 19 SMALL BUSINESS GRANT
Eden District Council,http://opendatacommunities.org/id/district-council/eden,Financial Services Manager,Emergency Planning and Works,Grants and contributions,Hunsonby Community Centre,40055992,01/05/20,181226,10000,COVID 19 SMALL BUSINESS GRANT
Eden District Council,http://opendatacommunities.org/id/district-council/eden,Financial Services Manager,Emergency Planning and Works,Grants and contributions,THE RATE PAYER,40242925,01/05/20,181227,10000,COVID 19 SMALL BUSINESS GRANT
Eden District Council,http://opendatacommunities.org/id/district-council/eden,Financial Services Manager,Emergency Planning and Works,Grants and contributions,Eamont Bridge Village Hall Comm,40054609,01/05/20,181228,10000,COVID 19 SMALL BUSINESS GRANT
Eden District Council,http://opendatacommunities.org/id/district-council/eden,Financial Services Manager,Emergency Planning and Works,Grants and contributions,CIEL Hotels Ltd,40210270,01/05/20,181229,25000,COVID 19 SMALL BUSINESS GRANT
Eden District Council,http://opendatacommunities.org/id/district-council/eden,Financial Services Manager,Emergency Planning and Works,Grants and contributions,CIEL Hotels Ltd,40240004,01/05/20,181230,25000,COVID 19 SMALL BUSINESS GRANT
Eden District Council,http://opendatacommunities.org/id/district-council/eden,Financial Services Manager,Emergency Planning and Works,Grants and contributions,Goose Garth Helton,40102652,01/05/20,181231,10000,COVID 19 SMALL BUSINESS GRANT
Eden District Council,http://opendatacommunities.org/id/district-council/eden,Financial Services Manager,Emergency Planning and Works,Grants and contributions,Fern Cottage,40165004,01/05/20,181232,10000,COVID 19 SMALL BUSINESS GRANT
Eden District Council,http://opendatacommunities.org/id/district-council/eden,Financial Services Manager,Emergency Planning and Works,Grants and contributions,Great Strickland Parish Institute,40055039,01/05/20,181233,10000,COVID 19 SMALL BUSINESS GRANT
Eden District Council,http://opendatacommunities.org/id/district-council/eden,Financial Services Manager,Emergency Planning and Works,Grants and contributions,FARRIERS FORGE,40130374,01/05/20,181234,10000,COVID 19 SMALL BUSINESS GRANT
Eden District Council,http://opendatacommunities.org/id/district-council/eden,Financial Services Manager,Emergency Planning and Works,Grants and contributions,THE RATE PAYER,40131599,01/05/20,181235,10000,COVID 19 SMALL BUSINESS GRANT
Eden District Council,http://opendatacommunities.org/id/district-council/eden,Financial Services Manager,Emergency Planning and Works,Grants and contributions,THE RATE PAYER,40229267,01/05/20,181236,10000,COVID 19 SMALL BUSINESS GRANT
Eden District Council,http://opendatacommunities.org/id/district-council/eden,Financial Services Manager,Emergency Planning and Works,Grants and contributions,THE RATE PAYER,40229519,01/05/20,181237,10000,COVID 19 SMALL BUSINESS GRANT
Eden District Council,http://opendatacommunities.org/id/district-council/eden,Financial Services Manager,Emergency Planning and Works,Grants and contributions,THE RATE PAYER,40243898,01/05/20,181238,10000,COVID 19 SMALL BUSINESS GRANT
Eden District Council,http://opendatacommunities.org/id/district-council/eden,Financial Services Manager,Emergency Planning and Works,Grants and contributions,THE RATE PAYER,40238759,01/05/20,181239,10000,COVID 19 SMALL BUSINESS GRANT
Eden District Council,http://opendatacommunities.org/id/district-council/eden,Financial Services Manager,Emergency Planning and Works,Grants and contributions,Stainton Recreation Committee,40056988,01/05/20,181240,10000,COVID 19 SMALL BUSINESS GRANT
Eden District Council,http://opendatacommunities.org/id/district-council/eden,Financial Services Manager,Emergency Planning and Works,Grants and contributions,Cockley Moor Cottage,40215367,01/05/20,181241,10000,COVID 19 SMALL BUSINESS GRANT
Eden District Council,http://opendatacommunities.org/id/district-council/eden,Financial Services Manager,Emergency Planning and Works,Grants and contributions,THE RATE PAYER,40218779,01/05/20,181242,10000,COVID 19 SMALL BUSINESS GRANT
Eden District Council,http://opendatacommunities.org/id/district-council/eden,Financial Services Manager,Emergency Planning and Works,Grants and contributions,THE RATE PAYER,40229441,01/05/20,181243,10000,COVID 19 SMALL BUSINESS GRANT
Eden District Council,http://opendatacommunities.org/id/district-council/eden,Financial Services Manager,Emergency Planning and Works,Grants and contributions,Daweswood Patterdale Penrith CA11 0NW,40212023,01/05/20,181244,10000,COVID 19 SMALL BUSINESS GRANT
Eden District Council,http://opendatacommunities.org/id/district-council/eden,Financial Services Manager,Emergency Planning and Works,Grants and contributions,THE RATE PAYER,40209119,01/05/20,181245,10000,COVID 19 SMALL BUSINESS GRANT
Eden District Council,http://opendatacommunities.org/id/district-council/eden,Financial Services Manager,Emergency Planning and Works,Grants and contributions,Eden Mortgages Ltd,40230885,01/05/20,181246,10000,COVID 19 SMALL BUSINESS GRANT
Eden District Council,http://opendatacommunities.org/id/district-council/eden,Financial Services Manager,Emergency Planning and Works,Grants and contributions,THE RATE PAYER,40221836,01/05/20,181247,10000,COVID 19 SMALL BUSINESS GRANT
Eden District Council,http://opendatacommunities.org/id/district-council/eden,Financial Services Manager,Emergency Planning and Works,Grants and contributions,Eden taxis cooperative,40220765,01/05/20,181248,10000,COVID 19 SMALL BUSINESS GRANT
Eden District Council,http://opendatacommunities.org/id/district-council/eden,Financial Services Manager,Emergency Planning and Works,Grants and contributions,THE RATE PAYER,40187059,01/05/20,181249,10000,COVID 19 SMALL BUSINESS GRANT
Eden District Council,http://opendatacommunities.org/id/district-council/eden,Financial Services Manager,Emergency Planning and Works,Grants and contributions,THE RATE PAYER,40107176,01/05/20,181250,10000,COVID 19 SMALL BUSINESS GRANT
Eden District Council,http://opendatacommunities.org/id/district-council/eden,Financial Services Manager,Emergency Planning and Works,Grants and contributions,THE RATE PAYER,40043616,01/05/20,181251,10000,COVID 19 SMALL BUSINESS GRANT
Eden District Council,http://opendatacommunities.org/id/district-council/eden,Financial Services Manager,Emergency Planning and Works,Grants and contributions,ANAEROBIC DIGESTION PLANT CASTLESTEADS,40236197,01/05/20,181252,10000,COVID 19 SMALL BUSINESS GRANT
Eden District Council,http://opendatacommunities.org/id/district-council/eden,Financial Services Manager,Emergency Planning and Works,Grants and contributions,SKELTON MEMORIAL HALL COMMITTEE,40031453,01/05/20,181253,10000,COVID 19 SMALL BUSINESS GRANT
Eden District Council,http://opendatacommunities.org/id/district-council/eden,Financial Services Manager,Emergency Planning and Works,Grants and contributions,Bolton Nursery Ltd,40153568,01/05/20,181254,10000,COVID 19 SMALL BUSINESS GRANT
Eden District Council,http://opendatacommunities.org/id/district-council/eden,Financial Services Manager,Emergency Planning and Works,Grants and contributions,Long Marton Village Institute,40031439,01/05/20,181255,10000,COVID 19 SMALL BUSINESS GRANT
Eden District Council,http://opendatacommunities.org/id/district-council/eden,Financial Services Manager,Emergency Planning and Works,Grants and contributions,Red Squirrels Nursery,40177380,01/05/20,181256,10000,COVID 19 SMALL BUSINESS GRANT
Eden District Council,http://opendatacommunities.org/id/district-council/eden,Financial Services Manager,Emergency Planning and Works,Grants and contributions,AGE CONCERN APPLEBY,40132592,01/05/20,181257,10000,COVID 19 SMALL BUSINESS GRANT
Eden District Council,http://opendatacommunities.org/id/district-council/eden,Financial Services Manager,Emergency Planning and Works,Grants and contributions,THE RATE PAYER,40110929,01/05/20,181258,10000,COVID 19 SMALL BUSINESS GRANT
Eden District Council,http://opendatacommunities.org/id/district-council/eden,Financial Services Manager,Emergency Planning and Works,Grants and contributions,THE RATE PAYER,40226480,01/05/20,181259,10000,COVID 19 SMALL BUSINESS GRANT
Eden District Council,http://opendatacommunities.org/id/district-council/eden,Financial Services Manager,Emergency Planning and Works,Grants and contributions,Fettlers Holiday Cottage,40204527,01/05/20,181260,10000,COVID 19 SMALL BUSINESS GRANT
Eden District Council,http://opendatacommunities.org/id/district-council/eden,Financial Services Manager,Emergency Planning and Works,Grants and contributions,THE OLD PARLOUR,40179058,01/05/20,181261,10000,COVID 19 SMALL BUSINESS GRANT
Eden District Council,http://opendatacommunities.org/id/district-council/eden,Financial Services Manager,Emergency Planning and Works,Grants and contributions,THE RATE PAYER,40223924,01/05/20,181262,10000,COVID 19 SMALL BUSINESS GRANT
Eden District Council,http://opendatacommunities.org/id/district-council/eden,Financial Services Manager,Emergency Planning and Works,Grants and contributions,THE RATE PAYER,40230519,01/05/20,181263,10000,COVID 19 SMALL BUSINESS GRANT
Eden District Council,http://opendatacommunities.org/id/district-council/eden,Financial Services Manager,Emergency Planning and Works,Grants and contributions,THE RATE PAYER,40041351,01/05/20,181264,10000,COVID 19 SMALL BUSINESS GRANT
Eden District Council,http://opendatacommunities.org/id/district-council/eden,Financial Services Manager,Emergency Planning and Works,Grants and contributions,THE RATE PAYER,40219253,01/05/20,181265,10000,COVID 19 SMALL BUSINESS GRANT
Eden District Council,http://opendatacommunities.org/id/district-council/eden,Financial Services Manager,Emergency Planning and Works,Grants and contributions,Brockhill Enterprises Ltd,40167017,01/05/20,181266,10000,COVID 19 SMALL BUSINESS GRANT
Eden District Council,http://opendatacommunities.org/id/district-council/eden,Financial Services Manager,Emergency Planning and Works,Grants and contributions,Ona Ash Kirkoswald Penrith CA10 1EZ,40207014,01/05/20,181267,10000,COVID 19 SMALL BUSINESS GRANT
Eden District Council,http://opendatacommunities.org/id/district-council/eden,Financial Services Manager,Emergency Planning and Works,Grants and contributions,Chloe's Hair & Beauty,40246583,01/05/20,181268,10000,COVID 19 SMALL BUSINESS GRANT
Eden District Council,http://opendatacommunities.org/id/district-council/eden,Financial Services Manager,Emergency Planning and Works,Grants and contributions,THE RATE PAYER,40246996,01/05/20,181269,10000,COVID 19 SMALL BUSINESS GRANT
Eden District Council,http://opendatacommunities.org/id/district-council/eden,Financial Services Manager,Emergency Planning and Works,Grants and contributions,THE RATE PAYER,40188717,01/05/20,181270,10000,COVID 19 SMALL BUSINESS GRANT
Eden District Council,http://opendatacommunities.org/id/district-council/eden,Financial Services Manager,Emergency Planning and Works,Grants and contributions,The Royalist Orton Hall,40162449,01/05/20,181271,10000,COVID 19 SMALL BUSINESS GRANT
Eden District Council,http://opendatacommunities.org/id/district-council/eden,Financial Services Manager,Emergency Planning and Works,Grants and contributions,Naseby Orton Hall Orton CA10 3RF,40152336,01/05/20,181272,10000,COVID 19 SMALL BUSINESS GRANT
Eden District Council,http://opendatacommunities.org/id/district-council/eden,Financial Services Manager,Emergency Planning and Works,Grants and contributions,Clarendon Orton Hall,40140814,01/05/20,181273,10000,COVID 19 SMALL BUSINESS GRANT
Eden District Council,http://opendatacommunities.org/id/district-council/eden,Financial Services Manager,Emergency Planning and Works,Grants and contributions,the hired lad,40187677,01/05/20,181274,10000,COVID 19 SMALL BUSINESS GRANT
Eden District Council,http://opendatacommunities.org/id/district-council/eden,Financial Services Manager,Emergency Planning and Works,Grants and contributions,LIGHTFOOT STONEWORK LIMITED,40244075,01/05/20,181275,10000,COVID 19 SMALL BUSINESS GRANT
Eden District Council,http://opendatacommunities.org/id/district-council/eden,Financial Services Manager,Emergency Planning and Works,Grants and contributions,Big Moose Productions,40211402,01/05/20,181276,10000,COVID 19 SMALL BUSINESS GRANT
Eden District Council,http://opendatacommunities.org/id/district-council/eden,Financial Services Manager,Emergency Planning and Works,Grants and contributions,13 Kirkstone cottage Whitbarrow Berrier Penrith CA 110XB,40200297,01/05/20,181277,10000,COVID 19 SMALL BUSINESS GRANT
Eden District Council,http://opendatacommunities.org/id/district-council/eden,Financial Services Manager,Emergency Planning and Works,Grants and contributions,THE RATE PAYER,40216247,01/05/20,181278,10000,COVID 19 SMALL BUSINESS GRANT
Eden District Council,http://opendatacommunities.org/id/district-council/eden,Financial Services Manager,Emergency Planning and Works,Grants and contributions,Cryer,40221560,01/05/20,181279,10000,COVID 19 SMALL BUSINESS GRANT
Eden District Council,http://opendatacommunities.org/id/district-council/eden,Financial Services Manager,Emergency Planning and Works,Grants and contributions,7 KIRKSTONE COTTAGE WHITBARROW BERRIER PENRITH CA110XB,40200952,01/05/20,181280,10000,COVID 19 SMALL BUSINESS GRANT
Eden District Council,http://opendatacommunities.org/id/district-council/eden,Financial Services Manager,Emergency Planning and Works,Grants and contributions,Townhead chippy limited,40217165,01/05/20,181281,10000,COVID 19 SMALL BUSINESS GRANT
Eden District Council,http://opendatacommunities.org/id/district-council/eden,Financial Services Manager,Emergency Planning and Works,Grants and contributions,Owl Cottage 47 Boroughgate Appleby CA16 6xg,40127989,01/05/20,181282,10000,COVID 19 SMALL BUSINESS GRANT
Eden District Council,http://opendatacommunities.org/id/district-council/eden,Financial Services Manager,Emergency Planning and Works,Grants and contributions,Able Memorials Ltd,40183569,01/05/20,181283,10000,COVID 19 SMALL BUSINESS GRANT
Eden District Council,http://opendatacommunities.org/id/district-council/eden,Financial Services Manager,Emergency Planning and Works,Grants and contributions,NJM SPORTS LTD,40244303,01/05/20,181284,10000,COVID 19 SMALL BUSINESS GRANT
Eden District Council,http://opendatacommunities.org/id/district-council/eden,Financial Services Manager,Emergency Planning and Works,Grants and contributions,WH Smith PLC,40210409,01/05/20,181285,25000,COVID 19 SMALL BUSINESS GRANT
Eden District Council,http://opendatacommunities.org/id/district-council/eden,Financial Services Manager,Emergency Planning and Works,Grants and contributions,Village Hall Warcop Appleby-in-Westmorland CA16 6NX,40219833,01/05/20,181286,10000,COVID 19 SMALL BUSINESS GRANT
Eden District Council,http://opendatacommunities.org/id/district-council/eden,Financial Services Manager,Emergency Planning and Works,Grants and contributions,Appleby & District Royal British Legion,40046257,01/05/20,181287,10000,COVID 19 SMALL BUSINESS GRANT
Eden District Council,http://opendatacommunities.org/id/district-council/eden,Financial Services Manager,Emergency Planning and Works,Grants and contributions,Aspire 17 LTD,40243027,01/05/20,181288,10000,COVID 19 SMALL BUSINESS GRANT
Eden District Council,http://opendatacommunities.org/id/district-council/eden,Environmental Services,Housing Delivery,Professional fees,WSP UK LTD,WSP001,07/05/20,180922,21815,DPD BRIDGE LANE/POOLEY BRIDGE SCHEMES
Eden District Council,http://opendatacommunities.org/id/district-council/eden,Environmental Services,1996 Mandatory Renovation Grants,Capital grants,KJS ACCESS SOLUTIONS,KJS001,07/05/20,180927,3210.1,fin payment grant ref180080
Eden District Council,http://opendatacommunities.org/id/district-council/eden,Technical Services Manager,Recycling,VRC Payments,APPLEBY TOWN COUNCIL,APP001,07/05/20,178518,700,RECYCLING CENTRE BROAD CLOSE
Eden District Council,http://opendatacommunities.org/id/district-council/eden,Transformation & Customers Head of,Communications Services,Social Media,SOCIALSIGNIN LTD,SOC008,07/05/20,179656,4135,SUBSCRIPTION 20.03.20-20.03.2
Eden District Council,http://opendatacommunities.org/id/district-council/eden,Revenue/Benefits Manager,Benefits,Software � maintenance,SOUTH LAKELAND DISTRICT COUNCIL,SOU006,07/05/20,179662,3646,RECHARGE CAPITA 40%
Eden District Council,http://opendatacommunities.org/id/district-council/eden,Environmental Services,Community Wardens,Fuel,CUMBRIA COUNTY COUNCIL,CCC002,07/05/20,179671,1220.46,FUEL CARD EXPENDITURE 2019-APR20
Eden District Council,http://opendatacommunities.org/id/district-council/eden,Information Technology Manager,Information Technology,Web Services,SITEIMPROVE LTD,SIT002,07/05/20,179896,1856.37,12.05.20-11.05.21
Eden District Council,http://opendatacommunities.org/id/district-council/eden,Environmental Services,Other Environmental Health,Professional fees,UNITED UTILITIES WATER PLC,UNI024,07/05/20,180496,1989.13,INCOME LABS MAR20
Eden District Council,http://opendatacommunities.org/id/district-council/eden,Technical Services Manager,Land Management,Building works,BAINES WILSON,BAI007,07/05/20,180497,3250,PROF FEES -VOREDA HOUSE
Eden District Council,http://opendatacommunities.org/id/district-council/eden,Revenue/Benefits Manager,Benefits,Software � purchase,SOUTH LAKELAND DISTRICT COUNCIL,SOU006,07/05/20,180934,639.3,RECHARGE DWP LA DTA SHARING TO 31.3.20
Eden District Council,http://opendatacommunities.org/id/district-council/eden,Revenue/Benefits Manager,Benefits,Unique payments ****,REDACTED INFORMATION,WYC002,07/05/20,180981,883.38,COUNCIL TAX BAND REDUCTION
Eden District Council,http://opendatacommunities.org/id/district-council/eden,Revenue/Benefits Manager,Benefits,Unique payments ****,REDACTED INFORMATION,RIL004,07/05/20,180982,774.77,COUNCIL TAX BAND REDUCTION
Eden District Council,http://opendatacommunities.org/id/district-council/eden,Technical Services Manager,Administrative Buildings,Commercial Refuse collection,AMEY PLC,TFE001,07/05/20,180984,566.54,CONTAINERS - TH
Eden District Council,http://opendatacommunities.org/id/district-council/eden,Technical Services Manager,Cemeteries,Commercial Refuse collection,AMEY PLC,TFE001,07/05/20,180991,633.36,PENRITH CEMETERY
Eden District Council,http://opendatacommunities.org/id/district-council/eden,Commercial Services Manager,Community Development & Engagement,Community Fund,PENRITH ACTION FOR COMMUNITY TRANSITION LTD,PEN058,07/05/20,181143,1092,FIRST INSTALLMENT ECF322
Eden District Council,http://opendatacommunities.org/id/district-council/eden,Commercial Services Manager,Community Development & Engagement,Community Fund,HUNSONBY SWIMMING CLUB,HUN017,07/05/20,181214,1646.16,community fund award
Eden District Council,http://opendatacommunities.org/id/district-council/eden,Commercial Services Manager,Community Development & Engagement,Community Fund,PENRITH PUMAS WRC,PEN094,07/05/20,181218,3750,EDEN COMMUNITY FUND AWARD
Eden District Council,http://opendatacommunities.org/id/district-council/eden,Revenue/Benefits Manager,Revenue & Benefits,Postages,ROYAL MAIL NW,ROY001,07/05/20,181222,1283.56,POST CHARGES
Eden District Council,http://opendatacommunities.org/id/district-council/eden,Commercial Services Manager,Economic Development and Promotion,Grants and contributions,CUMBRIA LOCAL ENTERPRISE PARTNERSHIP,CUM128,07/05/20,181256,5000,GRANT LEP PARTNERSHIP 20/21
Eden District Council,http://opendatacommunities.org/id/district-council/eden,Technical Services Manager,Street Cleaning,Street Cleaning Contract,AMEY PLC,TFE001,07/05/20,181265,3882.23,SC81
Eden District Council,http://opendatacommunities.org/id/district-council/eden,Technical Services Manager,Arts and Leisure,Grants and contributions,HUNSONBY SWIMMING CLUB,HUN017,07/05/20,181266,500,RURAL POOLS GRANT 2020
Eden District Council,http://opendatacommunities.org/id/district-council/eden,Commercial Services Manager,Emergency Planning and Works,Grants and contributions,THE RATE PAYER,QUI006,07/05/20,181284,2500,BUSINESS FLOOD RECVERY GRANT
Eden District Council,http://opendatacommunities.org/id/district-council/eden,Financial Services Manager,Emergency Planning and Works,Grants and contributions,THE RATE PAYER,40042972,04/05/20,181400,10000,COVID 19 SMALL BUSINESS GRANT
Eden District Council,http://opendatacommunities.org/id/district-council/eden,Financial Services Manager,Emergency Planning and Works,Grants and contributions,Crakeld Holm,40183101,04/05/20,181401,10000,COVID 19 SMALL BUSINESS GRANT
Eden District Council,http://opendatacommunities.org/id/district-council/eden,Financial Services Manager,Emergency Planning and Works,Grants and contributions,Eden Lacy Lodge,40183088,04/05/20,181402,10000,COVID 19 SMALL BUSINESS GRANT
Eden District Council,http://opendatacommunities.org/id/district-council/eden,Financial Services Manager,Emergency Planning and Works,Grants and contributions,The Eden Lacy Trust,40183095,04/05/20,181403,10000,COVID 19 SMALL BUSINESS GRANT
Eden District Council,http://opendatacommunities.org/id/district-council/eden,Financial Services Manager,Emergency Planning and Works,Grants and contributions,THE RATE PAYER,40032159,04/05/20,181404,10000,COVID 19 SMALL BUSINESS GRANT
Eden District Council,http://opendatacommunities.org/id/district-council/eden,Financial Services Manager,Emergency Planning and Works,Grants and contributions,The Water Mill,40213941,04/05/20,181405,10000,COVID 19 SMALL BUSINESS GRANT
Eden District Council,http://opendatacommunities.org/id/district-council/eden,Financial Services Manager,Emergency Planning and Works,Grants and contributions,land adj to brydaleculgaith.penrith,40178260,04/05/20,181406,10000,COVID 19 SMALL BUSINESS GRANT
Eden District Council,http://opendatacommunities.org/id/district-council/eden,Financial Services Manager,Emergency Planning and Works,Grants and contributions,THE RATE PAYER,40225555,04/05/20,181407,10000,COVID 19 SMALL BUSINESS GRANT
Eden District Council,http://opendatacommunities.org/id/district-council/eden,Financial Services Manager,Emergency Planning and Works,Grants and contributions,Fells and Dales Ltd,40232621,04/05/20,181408,10000,COVID 19 SMALL BUSINESS GRANT
Eden District Council,http://opendatacommunities.org/id/district-council/eden,Financial Services Manager,Emergency Planning and Works,Grants and contributions,THE RATE PAYER,40221317,04/05/20,181409,10000,COVID 19 SMALL BUSINESS GRANT
Eden District Council,http://opendatacommunities.org/id/district-council/eden,Financial Services Manager,Emergency Planning and Works,Grants and contributions,THE RATE PAYER,40111601,04/05/20,181410,10000,COVID 19 SMALL BUSINESS GRANT
Eden District Council,http://opendatacommunities.org/id/district-council/eden,Financial Services Manager,Emergency Planning and Works,Grants and contributions,A & R Landscaping ltd,40241403,04/05/20,181411,10000,COVID 19 SMALL BUSINESS GRANT
Eden District Council,http://opendatacommunities.org/id/district-council/eden,Financial Services Manager,Emergency Planning and Works,Grants and contributions,Inglewood Farms Limited,40166021,04/05/20,181412,10000,COVID 19 SMALL BUSINESS GRANT
Eden District Council,http://opendatacommunities.org/id/district-council/eden,Financial Services Manager,Emergency Planning and Works,Grants and contributions,THE RATE PAYER,40216315,04/05/20,181413,10000,COVID 19 SMALL BUSINESS GRANT
Eden District Council,http://opendatacommunities.org/id/district-council/eden,Financial Services Manager,Emergency Planning and Works,Grants and contributions,THE RATE PAYER,40175520,04/05/20,181414,10000,COVID 19 SMALL BUSINESS GRANT
Eden District Council,http://opendatacommunities.org/id/district-council/eden,Financial Services Manager,Emergency Planning and Works,Grants and contributions,Nicky Richards Racing Ltd,40190291,04/05/20,181415,25000,COVID 19 SMALL BUSINESS GRANT
Eden District Council,http://opendatacommunities.org/id/district-council/eden,Financial Services Manager,Emergency Planning and Works,Grants and contributions,Move by Meg,40239684,04/05/20,181416,10000,COVID 19 SMALL BUSINESS GRANT
Eden District Council,http://opendatacommunities.org/id/district-council/eden,Financial Services Manager,Emergency Planning and Works,Grants and contributions,Udford,40210508,04/05/20,181417,10000,COVID 19 SMALL BUSINESS GRANT
Eden District Council,http://opendatacommunities.org/id/district-council/eden,Financial Services Manager,Emergency Planning and Works,Grants and contributions,Assassin Goods Ltd,40238209,04/05/20,181418,10000,COVID 19 SMALL BUSINESS GRANT
Eden District Council,http://opendatacommunities.org/id/district-council/eden,Financial Services Manager,Emergency Planning and Works,Grants and contributions,THE RATE PAYER,40244136,04/05/20,181419,10000,COVID 19 SMALL BUSINESS GRANT
Eden District Council,http://opendatacommunities.org/id/district-council/eden,Financial Services Manager,Emergency Planning and Works,Grants and contributions,Coupland Hall Coupland Beck,40231338,04/05/20,181420,10000,COVID 19 SMALL BUSINESS GRANT
Eden District Council,http://opendatacommunities.org/id/district-council/eden,Financial Services Manager,Emergency Planning and Works,Grants and contributions,Beechcroft,40238940,04/05/20,181421,10000,COVID 19 SMALL BUSINESS GRANT
Eden District Council,http://opendatacommunities.org/id/district-council/eden,Financial Services Manager,Emergency Planning and Works,Grants and contributions,THE RATE PAYER,40187134,04/05/20,181422,10000,COVID 19 SMALL BUSINESS GRANT
Eden District Council,http://opendatacommunities.org/id/district-council/eden,Financial Services Manager,Emergency Planning and Works,Grants and contributions,J S Winder (Building and Roofing) Ltd,41000056,04/05/20,181423,10000,COVID 19 SMALL BUSINESS GRANT
Eden District Council,http://opendatacommunities.org/id/district-council/eden,Financial Services Manager,Emergency Planning and Works,Grants and contributions,MEA EDENS LIME BUILDERS,40209355,04/05/20,181424,10000,COVID 19 SMALL BUSINESS GRANT
Eden District Council,http://opendatacommunities.org/id/district-council/eden,Financial Services Manager,Emergency Planning and Works,Grants and contributions,Tunstall Tractors Ltd,40210690,04/05/20,181425,10000,COVID 19 SMALL BUSINESS GRANT
Eden District Council,http://opendatacommunities.org/id/district-council/eden,Financial Services Manager,Emergency Planning and Works,Grants and contributions,THE RATE PAYER,40223689,04/05/20,181426,10000,COVID 19 SMALL BUSINESS GRANT
Eden District Council,http://opendatacommunities.org/id/district-council/eden,Financial Services Manager,Emergency Planning and Works,Grants and contributions,THE RATE PAYER,40238018,04/05/20,181427,10000,COVID 19 SMALL BUSINESS GRANT
Eden District Council,http://opendatacommunities.org/id/district-council/eden,Financial Services Manager,Emergency Planning and Works,Grants and contributions,THE RATE PAYER,40209409,04/05/20,181428,10000,COVID 19 SMALL BUSINESS GRANT
Eden District Council,http://opendatacommunities.org/id/district-council/eden,Financial Services Manager,Emergency Planning and Works,Grants and contributions,THE RATE PAYER,40172484,04/05/20,181429,10000,COVID 19 SMALL BUSINESS GRANT
Eden District Council,http://opendatacommunities.org/id/district-council/eden,Financial Services Manager,Emergency Planning and Works,Grants and contributions,Annexe Old Manse Park Head,40205919,04/05/20,181430,10000,COVID 19 SMALL BUSINESS GRANT
Eden District Council,http://opendatacommunities.org/id/district-council/eden,Financial Services Manager,Emergency Planning and Works,Grants and contributions,THE RATE PAYER,40131902,04/05/20,181431,10000,COVID 19 SMALL BUSINESS GRANT
Eden District Council,http://opendatacommunities.org/id/district-council/eden,Financial Services Manager,Emergency Planning and Works,Grants and contributions,THE RATE PAYER,40147938,04/05/20,181432,10000,COVID 19 SMALL BUSINESS GRANT
Eden District Council,http://opendatacommunities.org/id/district-council/eden,Financial Services Manager,Emergency Planning and Works,Grants and contributions,THE RATE PAYER,40175513,04/05/20,181433,10000,COVID 19 SMALL BUSINESS GRANT
Eden District Council,http://opendatacommunities.org/id/district-council/eden,Financial Services Manager,Emergency Planning and Works,Grants and contributions,life portraits,40247005,04/05/20,181434,10000,COVID 19 SMALL BUSINESS GRANT
Eden District Council,http://opendatacommunities.org/id/district-council/eden,Financial Services Manager,Emergency Planning and Works,Grants and contributions,THE RATE PAYER,40154639,04/05/20,181435,10000,COVID 19 SMALL BUSINESS GRANT
Eden District Council,http://opendatacommunities.org/id/district-council/eden,Financial Services Manager,Emergency Planning and Works,Grants and contributions,THE RATE PAYER,40243201,04/05/20,181436,10000,COVID 19 SMALL BUSINESS GRANT
Eden District Council,http://opendatacommunities.org/id/district-council/eden,Financial Services Manager,Emergency Planning and Works,Grants and contributions,Buttercup,40246347,04/05/20,181437,10000,COVID 19 SMALL BUSINESS GRANT
Eden District Council,http://opendatacommunities.org/id/district-council/eden,Financial Services Manager,Emergency Planning and Works,Grants and contributions,Cumbrian Cuisine Limited,40217615,04/05/20,181438,10000,COVID 19 SMALL BUSINESS GRANT
Eden District Council,http://opendatacommunities.org/id/district-council/eden,Financial Services Manager,Emergency Planning and Works,Grants and contributions,THE RATE PAYER,40229861,04/05/20,181439,10000,COVID 19 SMALL BUSINESS GRANT
Eden District Council,http://opendatacommunities.org/id/district-council/eden,Financial Services Manager,Emergency Planning and Works,Grants and contributions,Alston goods shed trust,40134383,05/05/20,181523,10000,COVID 19 SMALL BUSINESS GRANT
Eden District Council,http://opendatacommunities.org/id/district-council/eden,Financial Services Manager,Emergency Planning and Works,Grants and contributions,THE RATE PAYER,40037727,05/05/20,181524,10000,COVID 19 SMALL BUSINESS GRANT
Eden District Council,http://opendatacommunities.org/id/district-council/eden,Financial Services Manager,Emergency Planning and Works,Grants and contributions,THE RATE PAYER,40050171,05/05/20,181525,10000,COVID 19 SMALL BUSINESS GRANT
Eden District Council,http://opendatacommunities.org/id/district-council/eden,Financial Services Manager,Emergency Planning and Works,Grants and contributions,Lowther Parish Hall,40029139,05/05/20,181526,10000,COVID 19 SMALL BUSINESS GRANT
Eden District Council,http://opendatacommunities.org/id/district-council/eden,Financial Services Manager,Emergency Planning and Works,Grants and contributions,Morland Village Hall,40051853,05/05/20,181527,10000,COVID 19 SMALL BUSINESS GRANT
Eden District Council,http://opendatacommunities.org/id/district-council/eden,Financial Services Manager,Emergency Planning and Works,Grants and contributions,Roans farm and 1 & 2 roans farm,40226299,05/05/20,181528,10000,COVID 19 SMALL BUSINESS GRANT
Eden District Council,http://opendatacommunities.org/id/district-council/eden,Financial Services Manager,Emergency Planning and Works,Grants and contributions,Eden Farm Supplies Shap,40029757,05/05/20,181529,10000,COVID 19 SMALL BUSINESS GRANT
Eden District Council,http://opendatacommunities.org/id/district-council/eden,Financial Services Manager,Emergency Planning and Works,Grants and contributions,Shap Community CIO,40219062,05/05/20,181530,10000,COVID 19 SMALL BUSINESS GRANT
Eden District Council,http://opendatacommunities.org/id/district-council/eden,Financial Services Manager,Emergency Planning and Works,Grants and contributions,Kings Meaburn Village Institute,40036694,05/05/20,181531,10000,COVID 19 SMALL BUSINESS GRANT
Eden District Council,http://opendatacommunities.org/id/district-council/eden,Financial Services Manager,Emergency Planning and Works,Grants and contributions,THE RATE PAYER,40066879,05/05/20,181532,10000,COVID 19 SMALL BUSINESS GRANT
Eden District Council,http://opendatacommunities.org/id/district-council/eden,Financial Services Manager,Emergency Planning and Works,Grants and contributions,Nicky Richards Racing Ltd,40190284,05/05/20,181533,10000,COVID 19 SMALL BUSINESS GRANT
Eden District Council,http://opendatacommunities.org/id/district-council/eden,Financial Services Manager,Emergency Planning and Works,Grants and contributions,British Heart Foundation,40112659,05/05/20,181534,10000,COVID 19 SMALL BUSINESS GRANT
Eden District Council,http://opendatacommunities.org/id/district-council/eden,Financial Services Manager,Emergency Planning and Works,Grants and contributions,THE RATE PAYER,40222273,05/05/20,181535,10000,COVID 19 SMALL BUSINESS GRANT
Eden District Council,http://opendatacommunities.org/id/district-council/eden,Financial Services Manager,Emergency Planning and Works,Grants and contributions,THE RATE PAYER,40071574,05/05/20,181536,10000,COVID 19 SMALL BUSINESS GRANT
Eden District Council,http://opendatacommunities.org/id/district-council/eden,Financial Services Manager,Emergency Planning and Works,Grants and contributions,Knot Aller,40190000,05/05/20,181537,10000,COVID 19 SMALL BUSINESS GRANT
Eden District Council,http://opendatacommunities.org/id/district-council/eden,Financial Services Manager,Emergency Planning and Works,Grants and contributions,Murton Institute,40056322,05/05/20,181538,10000,COVID 19 SMALL BUSINESS GRANT
Eden District Council,http://opendatacommunities.org/id/district-council/eden,Financial Services Manager,Emergency Planning and Works,Grants and contributions,APPLEBY BOWLING CLUB,40052351,05/05/20,181539,10000,COVID 19 SMALL BUSINESS GRANT
Eden District Council,http://opendatacommunities.org/id/district-council/eden,Financial Services Manager,Emergency Planning and Works,Grants and contributions,THE RATE PAYER,40038355,05/05/20,181540,10000,COVID 19 SMALL BUSINESS GRANT
Eden District Council,http://opendatacommunities.org/id/district-council/eden,Financial Services Manager,Emergency Planning and Works,Grants and contributions,SNOWDROP COTTAGE,40227384,05/05/20,181541,10000,COVID 19 SMALL BUSINESS GRANT
Eden District Council,http://opendatacommunities.org/id/district-council/eden,Financial Services Manager,Emergency Planning and Works,Grants and contributions,Soulby Memorial Hall Trust,40042668,05/05/20,181542,10000,COVID 19 SMALL BUSINESS GRANT
Eden District Council,http://opendatacommunities.org/id/district-council/eden,Financial Services Manager,Emergency Planning and Works,Grants and contributions,Crosby Garrett village hall,40040457,05/05/20,181543,10000,COVID 19 SMALL BUSINESS GRANT
Eden District Council,http://opendatacommunities.org/id/district-council/eden,Financial Services Manager,Emergency Planning and Works,Grants and contributions,Ivegill Village Hall Committee,40040136,05/05/20,181544,10000,COVID 19 SMALL BUSINESS GRANT
Eden District Council,http://opendatacommunities.org/id/district-council/eden,Financial Services Manager,Emergency Planning and Works,Grants and contributions,Croglin Toys,40048055,05/05/20,181545,10000,COVID 19 SMALL BUSINESS GRANT
Eden District Council,http://opendatacommunities.org/id/district-council/eden,Financial Services Manager,Emergency Planning and Works,Grants and contributions,Garrigill Village Hall Trustees,40186568,05/05/20,181546,10000,COVID 19 SMALL BUSINESS GRANT
Eden District Council,http://opendatacommunities.org/id/district-council/eden,Financial Services Manager,Emergency Planning and Works,Grants and contributions,THE RATE PAYER,40187943,05/05/20,181547,10000,COVID 19 SMALL BUSINESS GRANT
Eden District Council,http://opendatacommunities.org/id/district-council/eden,Financial Services Manager,Emergency Planning and Works,Grants and contributions,Brough Memorial Hall,40056254,05/05/20,181548,10000,COVID 19 SMALL BUSINESS GRANT
Eden District Council,http://opendatacommunities.org/id/district-council/eden,Financial Services Manager,Emergency Planning and Works,Grants and contributions,Frank Allison Ltd,40205339,05/05/20,181549,25000,COVID 19 SMALL BUSINESS GRANT
Eden District Council,http://opendatacommunities.org/id/district-council/eden,Financial Services Manager,Emergency Planning and Works,Grants and contributions,THE RATE PAYER,40214746,05/05/20,181550,10000,COVID 19 SMALL BUSINESS GRANT
Eden District Council,http://opendatacommunities.org/id/district-council/eden,Financial Services Manager,Emergency Planning and Works,Grants and contributions,THE RATE PAYER,40225579,05/05/20,181551,10000,COVID 19 SMALL BUSINESS GRANT
Eden District Council,http://opendatacommunities.org/id/district-council/eden,Financial Services Manager,Emergency Planning and Works,Grants and contributions,BlueJam Cumbria Ltd,40240912,05/05/20,181552,10000,COVID 19 SMALL BUSINESS GRANT
Eden District Council,http://opendatacommunities.org/id/district-council/eden,Financial Services Manager,Emergency Planning and Works,Grants and contributions,THE RATE PAYER,40238216,05/05/20,181553,10000,COVID 19 SMALL BUSINESS GRANT
Eden District Council,http://opendatacommunities.org/id/district-council/eden,Financial Services Manager,Emergency Planning and Works,Grants and contributions,GJS DIGVA,40179553,05/05/20,181554,10000,COVID 19 SMALL BUSINESS GRANT
Eden District Council,http://opendatacommunities.org/id/district-council/eden,Financial Services Manager,Emergency Planning and Works,Grants and contributions,1 ULLSWATER SUITES WHITBARROW SUITES BERRIER PENRITH CA11 OXB,40179478,05/05/20,181555,10000,COVID 19 SMALL BUSINESS GRANT
Eden District Council,http://opendatacommunities.org/id/district-council/eden,Financial Services Manager,Emergency Planning and Works,Grants and contributions,MARVINS (PENRITH) LIMITED,40053095,05/05/20,181556,10000,COVID 19 SMALL BUSINESS GRANT
Eden District Council,http://opendatacommunities.org/id/district-council/eden,Financial Services Manager,Emergency Planning and Works,Grants and contributions,Moto Hospitality Limited,40136907,05/05/20,181557,25000,COVID 19 SMALL BUSINESS GRANT
Eden District Council,http://opendatacommunities.org/id/district-council/eden,Financial Services Manager,Emergency Planning and Works,Grants and contributions,AGE CONCERN APPLEBY,40230571,05/05/20,181558,10000,COVID 19 SMALL BUSINESS GRANT
Eden District Council,http://opendatacommunities.org/id/district-council/eden,Financial Services Manager,Emergency Planning and Works,Grants and contributions,Carlisle Diocesan Board of Finance Ltd,40223764,05/05/20,181559,10000,COVID 19 SMALL BUSINESS GRANT
Eden District Council,http://opendatacommunities.org/id/district-council/eden,Financial Services Manager,Emergency Planning and Works,Grants and contributions,Clifton Village Hall,40028495,07/05/20,181613,10000,COVID 19 SMALL BUSINESS GRANT
Eden District Council,http://opendatacommunities.org/id/district-council/eden,Financial Services Manager,Emergency Planning and Works,Grants and contributions, Dalton Joinery,40030597,07/05/20,181614,10000,COVID 19 SMALL BUSINESS GRANT
Eden District Council,http://opendatacommunities.org/id/district-council/eden,Financial Services Manager,Emergency Planning and Works,Grants and contributions,Bampton Village Hall,40033015,07/05/20,181615,10000,COVID 19 SMALL BUSINESS GRANT
Eden District Council,http://opendatacommunities.org/id/district-council/eden,Financial Services Manager,Emergency Planning and Works,Grants and contributions,North Stainmore Parish Hall,40033404,07/05/20,181616,10000,COVID 19 SMALL BUSINESS GRANT
Eden District Council,http://opendatacommunities.org/id/district-council/eden,Financial Services Manager,Emergency Planning and Works,Grants and contributions,The Old School OusbyCA10 1QA,40035103,07/05/20,181617,10000,COVID 19 SMALL BUSINESS GRANT
Eden District Council,http://opendatacommunities.org/id/district-council/eden,Financial Services Manager,Emergency Planning and Works,Grants and contributions,THE RATE PAYER,40035882,07/05/20,181618,10000,COVID 19 SMALL BUSINESS GRANT
Eden District Council,http://opendatacommunities.org/id/district-council/eden,Financial Services Manager,Emergency Planning and Works,Grants and contributions,Skirwith Village Hall Trustees,40039983,07/05/20,181619,10000,COVID 19 SMALL BUSINESS GRANT
Eden District Council,http://opendatacommunities.org/id/district-council/eden,Financial Services Manager,Emergency Planning and Works,Grants and contributions,WCF Ltd,40042088,07/05/20,181620,25000,COVID 19 SMALL BUSINESS GRANT
Eden District Council,http://opendatacommunities.org/id/district-council/eden,Financial Services Manager,Emergency Planning and Works,Grants and contributions,Brampton Village Hall,40045452,07/05/20,181621,10000,COVID 19 SMALL BUSINESS GRANT
Eden District Council,http://opendatacommunities.org/id/district-council/eden,Financial Services Manager,Emergency Planning and Works,Grants and contributions,Langwathby Village Hall,40046899,07/05/20,181622,10000,COVID 19 SMALL BUSINESS GRANT
Eden District Council,http://opendatacommunities.org/id/district-council/eden,Financial Services Manager,Emergency Planning and Works,Grants and contributions,Low Hesket Village Hall,40049195,07/05/20,181623,10000,COVID 19 SMALL BUSINESS GRANT
Eden District Council,http://opendatacommunities.org/id/district-council/eden,Financial Services Manager,Emergency Planning and Works,Grants and contributions,Newbiggin-on-Lune Public Hall,40050157,07/05/20,181624,10000,COVID 19 SMALL BUSINESS GRANT
Eden District Council,http://opendatacommunities.org/id/district-council/eden,Financial Services Manager,Emergency Planning and Works,Grants and contributions,Lazonby Bowling Club,40050706,07/05/20,181625,10000,COVID 19 SMALL BUSINESS GRANT
Eden District Council,http://opendatacommunities.org/id/district-council/eden,Financial Services Manager,Emergency Planning and Works,Grants and contributions,Watermillock Parish Hall,40051976,07/05/20,181626,10000,COVID 19 SMALL BUSINESS GRANT
Eden District Council,http://opendatacommunities.org/id/district-council/eden,Financial Services Manager,Emergency Planning and Works,Grants and contributions,PENRITH FRIARS BOWLING CLUB,40053514,07/05/20,181627,10000,COVID 19 SMALL BUSINESS GRANT
Eden District Council,http://opendatacommunities.org/id/district-council/eden,Financial Services Manager,Emergency Planning and Works,Grants and contributions,THE RATE PAYER,40054104,07/05/20,181628,10000,COVID 19 SMALL BUSINESS GRANT
Eden District Council,http://opendatacommunities.org/id/district-council/eden,Financial Services Manager,Emergency Planning and Works,Grants and contributions,THE RATE PAYER,40055466,07/05/20,181629,10000,COVID 19 SMALL BUSINESS GRANT
Eden District Council,http://opendatacommunities.org/id/district-council/eden,Financial Services Manager,Emergency Planning and Works,Grants and contributions,Bobbin Mill Hall Trust,40055794,07/05/20,181630,10000,COVID 19 SMALL BUSINESS GRANT
Eden District Council,http://opendatacommunities.org/id/district-council/eden,Financial Services Manager,Emergency Planning and Works,Grants and contributions,THE RATE PAYER,40070748,07/05/20,181631,10000,COVID 19 SMALL BUSINESS GRANT
Eden District Council,http://opendatacommunities.org/id/district-council/eden,Financial Services Manager,Emergency Planning and Works,Grants and contributions,THE RATE PAYER,40102379,07/05/20,181632,10000,COVID 19 SMALL BUSINESS GRANT
Eden District Council,http://opendatacommunities.org/id/district-council/eden,Financial Services Manager,Emergency Planning and Works,Grants and contributions,THE RATE PAYER,40126306,07/05/20,181633,10000,COVID 19 SMALL BUSINESS GRANT
Eden District Council,http://opendatacommunities.org/id/district-council/eden,Financial Services Manager,Emergency Planning and Works,Grants and contributions,THE RATE PAYER,40127187,07/05/20,181634,10000,COVID 19 SMALL BUSINESS GRANT
Eden District Council,http://opendatacommunities.org/id/district-council/eden,Financial Services Manager,Emergency Planning and Works,Grants and contributions,Mungrisdale Recreation Room,40156666,07/05/20,181635,10000,COVID 19 SMALL BUSINESS GRANT
Eden District Council,http://opendatacommunities.org/id/district-council/eden,Financial Services Manager,Emergency Planning and Works,Grants and contributions,Deer How Farm,40158730,07/05/20,181636,10000,COVID 19 SMALL BUSINESS GRANT
Eden District Council,http://opendatacommunities.org/id/district-council/eden,Financial Services Manager,Emergency Planning and Works,Grants and contributions,Village Stores,40162210,07/05/20,181637,10000,COVID 19 SMALL BUSINESS GRANT
Eden District Council,http://opendatacommunities.org/id/district-council/eden,Financial Services Manager,Emergency Planning and Works,Grants and contributions,THE RATE PAYER,40177489,07/05/20,181638,10000,COVID 19 SMALL BUSINESS GRANT
Eden District Council,http://opendatacommunities.org/id/district-council/eden,Financial Services Manager,Emergency Planning and Works,Grants and contributions,THE RATE PAYER,40186292,07/05/20,181639,10000,COVID 19 SMALL BUSINESS GRANT
Eden District Council,http://opendatacommunities.org/id/district-council/eden,Financial Services Manager,Emergency Planning and Works,Grants and contributions,THE RATE PAYER,40188045,07/05/20,181640,10000,COVID 19 SMALL BUSINESS GRANT
Eden District Council,http://opendatacommunities.org/id/district-council/eden,Financial Services Manager,Emergency Planning and Works,Grants and contributions,Thompsons Garage,40204916,07/05/20,181641,10000,COVID 19 SMALL BUSINESS GRANT
Eden District Council,http://opendatacommunities.org/id/district-council/eden,Financial Services Manager,Emergency Planning and Works,Grants and contributions,THE RATE PAYER,40210300,07/05/20,181642,10000,COVID 19 SMALL BUSINESS GRANT
Eden District Council,http://opendatacommunities.org/id/district-council/eden,Financial Services Manager,Emergency Planning and Works,Grants and contributions,THE RATE PAYER,40219284,07/05/20,181643,10000,COVID 19 SMALL BUSINESS GRANT
Eden District Council,http://opendatacommunities.org/id/district-council/eden,Financial Services Manager,Emergency Planning and Works,Grants and contributions,THE RATE PAYER,40219710,07/05/20,181644,10000,COVID 19 SMALL BUSINESS GRANT
Eden District Council,http://opendatacommunities.org/id/district-council/eden,Financial Services Manager,Emergency Planning and Works,Grants and contributions,THE RATE PAYER,40224774,07/05/20,181645,10000,COVID 19 SMALL BUSINESS GRANT
Eden District Council,http://opendatacommunities.org/id/district-council/eden,Financial Services Manager,Emergency Planning and Works,Grants and contributions,THE RATE PAYER,40224859,07/05/20,181646,10000,COVID 19 SMALL BUSINESS GRANT
Eden District Council,http://opendatacommunities.org/id/district-council/eden,Financial Services Manager,Emergency Planning and Works,Grants and contributions,Byre cottage,40232669,07/05/20,181647,10000,COVID 19 SMALL BUSINESS GRANT
Eden District Council,http://opendatacommunities.org/id/district-council/eden,Financial Services Manager,Emergency Planning and Works,Grants and contributions,Bretherdale Hall and Bretherdale Barn,40236357,07/05/20,181648,10000,COVID 19 SMALL BUSINESS GRANT
Eden District Council,http://opendatacommunities.org/id/district-council/eden,Financial Services Manager,Emergency Planning and Works,Grants and contributions,1 Pump Square Brough Kirkby Stephen CA17 4BJ,40237886,07/05/20,181649,10000,COVID 19 SMALL BUSINESS GRANT
Eden District Council,http://opendatacommunities.org/id/district-council/eden,Financial Services Manager,Emergency Planning and Works,Grants and contributions,Thackmoor Nook Cottage,40238629,07/05/20,181650,10000,COVID 19 SMALL BUSINESS GRANT
Eden District Council,http://opendatacommunities.org/id/district-council/eden,Financial Services Manager,Emergency Planning and Works,Grants and contributions,62 Boroughgate,40239639,07/05/20,181651,10000,COVID 19 SMALL BUSINESS GRANT
Eden District Council,http://opendatacommunities.org/id/district-council/eden,Financial Services Manager,Emergency Planning and Works,Grants and contributions,Eden FM Radio Ltd,40240998,07/05/20,181652,10000,COVID 19 SMALL BUSINESS GRANT
Eden District Council,http://opendatacommunities.org/id/district-council/eden,Financial Services Manager,Emergency Planning and Works,Grants and contributions,THE RATE PAYER,40241038,07/05/20,181653,10000,COVID 19 SMALL BUSINESS GRANT
Eden District Council,http://opendatacommunities.org/id/district-council/eden,Financial Services Manager,Emergency Planning and Works,Grants and contributions,AS3 Performance Limited,40244181,07/05/20,181654,10000,COVID 19 SMALL BUSINESS GRANT
Eden District Council,http://opendatacommunities.org/id/district-council/eden,Financial Services Manager,Emergency Planning and Works,Grants and contributions,4Eden,40246798,07/05/20,181655,10000,COVID 19 SMALL BUSINESS GRANT
Eden District Council,http://opendatacommunities.org/id/district-council/eden,Financial Services Manager,Emergency Planning and Works,Grants and contributions,Mr Vikkis ltd,40247081,07/05/20,181656,10000,COVID 19 SMALL BUSINESS GRANT
Eden District Council,http://opendatacommunities.org/id/district-council/eden,Financial Services Manager,Emergency Planning and Works,Grants and contributions,DISTRICTLFITNESS LIMITED,40247128,07/05/20,181657,10000,COVID 19 SMALL BUSINESS GRANT
Eden District Council,http://opendatacommunities.org/id/district-council/eden,Legal Services Manager,Land Management,Land Management Contract,WALTON GOODLAND LTD,WAL008,15/05/20,179895,2989,rate for surveyor march 20
Eden District Council,http://opendatacommunities.org/id/district-council/eden,Financial Services Manager,Emergency Planning and Works,Advertising,BARON MEDIA LTD,CUM001,15/05/20,181258,900,CORONA ADVERT 18.04.20
Eden District Council,http://opendatacommunities.org/id/district-council/eden,Information Technology Manager,Information Technology,Printers Contract,XEROX FINANCE,XER003,15/05/20,181259,975,RENT 24.05.20 TO 23.08.20
Eden District Council,http://opendatacommunities.org/id/district-council/eden,Technical Services Manager,Administrative Buildings,Building works,APTUS UTILITIES LTD,APT001,15/05/20,181262,8892,FOOTWAY LIGHTING CAPITAL WORKS
Eden District Council,http://opendatacommunities.org/id/district-council/eden,Technical Services Manager,Administrative Buildings,Gas,CORONA ENERGY,COR003,15/05/20,181269,939.67,EDC TH S
Eden District Council,http://opendatacommunities.org/id/district-council/eden,Technical Services Manager,Administrative Buildings,Gas,CORONA ENERGY,COR003,15/05/20,181270,709.18,EDC MH
Eden District Council,http://opendatacommunities.org/id/district-council/eden,Financial Services Manager,Emergency Planning and Works,Advertising,BARON MEDIA LTD,CUM001,15/05/20,181278,900,CORONA AD 11.04.20
Eden District Council,http://opendatacommunities.org/id/district-council/eden,Technical Services Manager,Administrative Buildings,Electricity,NPOWER LTD,NPO001,15/05/20,181287,796.68,MH
Eden District Council,http://opendatacommunities.org/id/district-council/eden,Technical Services Manager,Administrative Buildings,Electricity,NPOWER LTD,NPO001,15/05/20,181288,1198.99,TH
Eden District Council,http://opendatacommunities.org/id/district-council/eden,Technical Services Manager,Closed Church Yards,GM INSPECTIONS & MAINTENANCE,AMEY PLC,TFE001,15/05/20,181391,17148.09,GROUNDS MAINT
Eden District Council,http://opendatacommunities.org/id/district-council/eden,Technical Services Manager,Closed Church Yards,GM INSPECTIONS & MAINTENANCE,AMEY PLC,TFE001,15/05/20,181392,17148.09,GROUNDS MAIN
Eden District Council,http://opendatacommunities.org/id/district-council/eden,Technical Services Manager,Closed Church Yards,GM INSPECTIONS & MAINTENANCE,AMEY PLC,TFE001,15/05/20,181393,17148.09,GROUNDS MAIN
Eden District Council,http://opendatacommunities.org/id/district-council/eden,Technical Services Manager,Closed Church Yards,GM INSPECTIONS & MAINTENANCE,AMEY PLC,TFE001,15/05/20,181394,17148.09,GROUNDS MAIN
Eden District Council,http://opendatacommunities.org/id/district-council/eden,Technical Services Manager,Public Conveniences,Devolution Grant,PATTERDALE PARISH COUNCIL,PAT002,15/05/20,181397,2655,YEAR 2 DEVOLUTION GRANT
Eden District Council,http://opendatacommunities.org/id/district-council/eden,Technical Services Manager,Public Conveniences,Devolution Grant,PATTERDALE PARISH COUNCIL,PAT002,15/05/20,181398,1905,YEAR 2 DEVOLUTION GRANT PATTERDALE PC
Eden District Council,http://opendatacommunities.org/id/district-council/eden,Chief Executive's,One Eden Programme,Agency Staff,MBSP CONSULTANCY LTD,MBS001,15/05/20,181471,9000,ONE EDEN CONSULTANCY
Eden District Council,http://opendatacommunities.org/id/district-council/eden,Technical Services Manager,Parks and Open Spaces,Devolution Grant,SHAP PARISH COUNCIL,SHA008,15/05/20,181474,519,DEVOLUTION PLAY AREAS
Eden District Council,http://opendatacommunities.org/id/district-council/eden,Technical Services Manager,Parks and Open Spaces,Devolution Grant,TEBAY PARISH COUNCIL,TEB001,15/05/20,181475,553,DEVOLUTION PLAY AREA
Eden District Council,http://opendatacommunities.org/id/district-council/eden,Human Resources Manager,Central Expenses,Advertising,REDACTIVE PUBLISHING LIMITED,RED006,15/05/20,181478,950,JOBS LISTING/LOGO
Eden District Council,http://opendatacommunities.org/id/district-council/eden,Technical Services Manager,Refuse Collection,Refuse Contract Dayworks,AMEY PLC,TFE001,15/05/20,181605,1158.93,REFUSE COLLECTION
Eden District Council,http://opendatacommunities.org/id/district-council/eden,Financial Services Manager,Emergency Planning and Works,Grants and contributions,Barn Conversion Nether Hoff Farm,40236425,11/05/20,181666,10000,COVID 19 SMALL BUSINESS GRANT
Eden District Council,http://opendatacommunities.org/id/district-council/eden,Financial Services Manager,Emergency Planning and Works,Grants and contributions,Askham & Dist Community Centre,40033114,11/05/20,181667,10000,COVID 19 SMALL BUSINESS GRANT
Eden District Council,http://opendatacommunities.org/id/district-council/eden,Financial Services Manager,Emergency Planning and Works,Grants and contributions,THE RATE PAYER,40037598,11/05/20,181668,10000,COVID 19 SMALL BUSINESS GRANT
Eden District Council,http://opendatacommunities.org/id/district-council/eden,Financial Services Manager,Emergency Planning and Works,Grants and contributions,Maulds Meaburn Village Institute,40202071,11/05/20,181669,10000,COVID 19 SMALL BUSINESS GRANT
Eden District Council,http://opendatacommunities.org/id/district-council/eden,Financial Services Manager,Emergency Planning and Works,Grants and contributions,Shap Memorial Hall Management Committee,40029306,11/05/20,181670,10000,COVID 19 SMALL BUSINESS GRANT
Eden District Council,http://opendatacommunities.org/id/district-council/eden,Financial Services Manager,Emergency Planning and Works,Grants and contributions,ORTON MARKET HALL,40189949,11/05/20,181671,10000,COVID 19 SMALL BUSINESS GRANT
Eden District Council,http://opendatacommunities.org/id/district-council/eden,Financial Services Manager,Emergency Planning and Works,Grants and contributions,Penrith Players Theatre Limited,40120858,11/05/20,181672,10000,COVID 19 SMALL BUSINESS GRANT
Eden District Council,http://opendatacommunities.org/id/district-council/eden,Financial Services Manager,Emergency Planning and Works,Grants and contributions,THE RATE PAYER,40228653,11/05/20,181673,10000,COVID 19 SMALL BUSINESS GRANT
Eden District Council,http://opendatacommunities.org/id/district-council/eden,Financial Services Manager,Emergency Planning and Works,Grants and contributions,THE RATE PAYER,40228042,11/05/20,181674,10000,COVID 19 SMALL BUSINESS GRANT
Eden District Council,http://opendatacommunities.org/id/district-council/eden,Financial Services Manager,Emergency Planning and Works,Grants and contributions,Threlkeld Recreation Field Trust,40143264,11/05/20,181675,10000,COVID 19 SMALL BUSINESS GRANT
Eden District Council,http://opendatacommunities.org/id/district-council/eden,Financial Services Manager,Emergency Planning and Works,Grants and contributions,Colby Village Hall,40119513,11/05/20,181676,10000,COVID 19 SMALL BUSINESS GRANT
Eden District Council,http://opendatacommunities.org/id/district-council/eden,Financial Services Manager,Emergency Planning and Works,Grants and contributions,Village Hall,40036014,11/05/20,181677,10000,COVID 19 SMALL BUSINESS GRANT
Eden District Council,http://opendatacommunities.org/id/district-council/eden,Financial Services Manager,Emergency Planning and Works,Grants and contributions,THE RATE PAYER,40237190,11/05/20,181678,10000,COVID 19 SMALL BUSINESS GRANT
Eden District Council,http://opendatacommunities.org/id/district-council/eden,Financial Services Manager,Emergency Planning and Works,Grants and contributions,Croglin Village Hall Committee,40054135,11/05/20,181679,10000,COVID 19 SMALL BUSINESS GRANT
Eden District Council,http://opendatacommunities.org/id/district-council/eden,Financial Services Manager,Emergency Planning and Works,Grants and contributions,Keepers Cottage,40231031,11/05/20,181680,10000,COVID 19 SMALL BUSINESS GRANT
Eden District Council,http://opendatacommunities.org/id/district-council/eden,Financial Services Manager,Emergency Planning and Works,Grants and contributions,THE RATE PAYER,40112970,11/05/20,181681,10000,COVID 19 SMALL BUSINESS GRANT
Eden District Council,http://opendatacommunities.org/id/district-council/eden,Financial Services Manager,Emergency Planning and Works,Grants and contributions,THE RATE PAYER,40230267,11/05/20,181682,10000,COVID 19 SMALL BUSINESS GRANT
Eden District Council,http://opendatacommunities.org/id/district-council/eden,Financial Services Manager,Emergency Planning and Works,Grants and contributions,Red Barn Cottages,40229304,11/05/20,181683,10000,COVID 19 SMALL BUSINESS GRANT
Eden District Council,http://opendatacommunities.org/id/district-council/eden,Financial Services Manager,Emergency Planning and Works,Grants and contributions,THE RATE PAYER,40053798,11/05/20,181684,10000,COVID 19 SMALL BUSINESS GRANT
Eden District Council,http://opendatacommunities.org/id/district-council/eden,Financial Services Manager,Emergency Planning and Works,Grants and contributions,THE RATE PAYER,40231222,11/05/20,181685,10000,COVID 19 SMALL BUSINESS GRANT
Eden District Council,http://opendatacommunities.org/id/district-council/eden,Financial Services Manager,Emergency Planning and Works,Grants and contributions,Vale of Eden Lodge,40039457,13/05/20,181721,10000,COVID 19 SMALL BUSINESS GRANT
Eden District Council,http://opendatacommunities.org/id/district-council/eden,Financial Services Manager,Emergency Planning and Works,Grants and contributions,Hutton in the Forest Village Hall,40041740,13/05/20,181722,10000,COVID 19 SMALL BUSINESS GRANT
Eden District Council,http://opendatacommunities.org/id/district-council/eden,Financial Services Manager,Emergency Planning and Works,Grants and contributions,THE RATE PAYER,40111328,13/05/20,181723,10000,COVID 19 SMALL BUSINESS GRANT
Eden District Council,http://opendatacommunities.org/id/district-council/eden,Financial Services Manager,Emergency Planning and Works,Grants and contributions, T/A sS.Bakewell,40119056,13/05/20,181724,10000,COVID 19 SMALL BUSINESS GRANT
Eden District Council,http://opendatacommunities.org/id/district-council/eden,Financial Services Manager,Emergency Planning and Works,Grants and contributions,Brough Pre-School Nursery,40125273,13/05/20,181725,10000,COVID 19 SMALL BUSINESS GRANT
Eden District Council,http://opendatacommunities.org/id/district-council/eden,Financial Services Manager,Emergency Planning and Works,Grants and contributions,The Bendrigg Trust,40128050,13/05/20,181726,10000,COVID 19 SMALL BUSINESS GRANT
Eden District Council,http://opendatacommunities.org/id/district-council/eden,Financial Services Manager,Emergency Planning and Works,Grants and contributions,Les Ritson's Garage,40128548,13/05/20,181727,10000,COVID 19 SMALL BUSINESS GRANT
Eden District Council,http://opendatacommunities.org/id/district-council/eden,Financial Services Manager,Emergency Planning and Works,Grants and contributions,APPLEBY & DISTRICT CONSERVATIVE CLUB LTD,40129541,13/05/20,181728,10000,COVID 19 SMALL BUSINESS GRANT
Eden District Council,http://opendatacommunities.org/id/district-council/eden,Financial Services Manager,Emergency Planning and Works,Grants and contributions,STATION HOUSE,40142223,13/05/20,181729,10000,COVID 19 SMALL BUSINESS GRANT
Eden District Council,http://opendatacommunities.org/id/district-council/eden,Financial Services Manager,Emergency Planning and Works,Grants and contributions,CLIBURN PUBLIC HALL COMMITTEE,40143233,13/05/20,181730,10000,COVID 19 SMALL BUSINESS GRANT
Eden District Council,http://opendatacommunities.org/id/district-council/eden,Financial Services Manager,Emergency Planning and Works,Grants and contributions,Lilac Barn & Lilac Studio,40160047,13/05/20,181731,10000,COVID 19 SMALL BUSINESS GRANT
Eden District Council,http://opendatacommunities.org/id/district-council/eden,Financial Services Manager,Emergency Planning and Works,Grants and contributions,SKIRSGILL DENTAL SURGERY,40164544,13/05/20,181732,10000,COVID 19 SMALL BUSINESS GRANT
Eden District Council,http://opendatacommunities.org/id/district-council/eden,Financial Services Manager,Emergency Planning and Works,Grants and contributions,11 stybarrow terrace glenridding ca11 0qd,40169693,13/05/20,181733,10000,COVID 19 SMALL BUSINESS GRANT
Eden District Council,http://opendatacommunities.org/id/district-council/eden,Financial Services Manager,Emergency Planning and Works,Grants and contributions,THE RATE PAYER,40180553,13/05/20,181734,10000,COVID 19 SMALL BUSINESS GRANT
Eden District Council,http://opendatacommunities.org/id/district-council/eden,Financial Services Manager,Emergency Planning and Works,Grants and contributions,M OLD SCALES FARM,40182429,13/05/20,181735,10000,COVID 19 SMALL BUSINESS GRANT
Eden District Council,http://opendatacommunities.org/id/district-council/eden,Financial Services Manager,Emergency Planning and Works,Grants and contributions,Wetheriggs united football club,40186636,13/05/20,181736,10000,COVID 19 SMALL BUSINESS GRANT
Eden District Council,http://opendatacommunities.org/id/district-council/eden,Financial Services Manager,Emergency Planning and Works,Grants and contributions,THE RATE PAYER,40187998,13/05/20,181737,10000,COVID 19 SMALL BUSINESS GRANT
Eden District Council,http://opendatacommunities.org/id/district-council/eden,Financial Services Manager,Emergency Planning and Works,Grants and contributions,THE RATE PAYER,40190260,13/05/20,181738,10000,COVID 19 SMALL BUSINESS GRANT
Eden District Council,http://opendatacommunities.org/id/district-council/eden,Financial Services Manager,Emergency Planning and Works,Grants and contributions,The Holiday Cottages  Greystone,40191423,13/05/20,181739,10000,COVID 19 SMALL BUSINESS GRANT
Eden District Council,http://opendatacommunities.org/id/district-council/eden,Financial Services Manager,Emergency Planning and Works,Grants and contributions,Park Farm Racing,40206202,13/05/20,181740,10000,COVID 19 SMALL BUSINESS GRANT
Eden District Council,http://opendatacommunities.org/id/district-council/eden,Financial Services Manager,Emergency Planning and Works,Grants and contributions,THE RATE PAYER,40206592,13/05/20,181741,10000,COVID 19 SMALL BUSINESS GRANT
Eden District Council,http://opendatacommunities.org/id/district-council/eden,Financial Services Manager,Emergency Planning and Works,Grants and contributions,THE RATE PAYER,40207854,13/05/20,181742,10000,COVID 19 SMALL BUSINESS GRANT
Eden District Council,http://opendatacommunities.org/id/district-council/eden,Financial Services Manager,Emergency Planning and Works,Grants and contributions,THE RATE PAYER,40208826,13/05/20,181743,10000,COVID 19 SMALL BUSINESS GRANT
Eden District Council,http://opendatacommunities.org/id/district-council/eden,Financial Services Manager,Emergency Planning and Works,Grants and contributions,THE RATE PAYER,40209720,13/05/20,181744,10000,COVID 19 SMALL BUSINESS GRANT
Eden District Council,http://opendatacommunities.org/id/district-council/eden,Financial Services Manager,Emergency Planning and Works,Grants and contributions,THE RATE PAYER,40211563,13/05/20,181745,10000,COVID 19 SMALL BUSINESS GRANT
Eden District Council,http://opendatacommunities.org/id/district-council/eden,Financial Services Manager,Emergency Planning and Works,Grants and contributions,Eden Country Care,40216513,13/05/20,181746,10000,COVID 19 SMALL BUSINESS GRANT
Eden District Council,http://opendatacommunities.org/id/district-council/eden,Financial Services Manager,Emergency Planning and Works,Grants and contributions,Eamont & Lowther at Bank House Barns,40231307,13/05/20,181747,10000,COVID 19 SMALL BUSINESS GRANT
Eden District Council,http://opendatacommunities.org/id/district-council/eden,Financial Services Manager,Emergency Planning and Works,Grants and contributions,2 Gowbarrow Cottages,40235637,13/05/20,181748,10000,COVID 19 SMALL BUSINESS GRANT
Eden District Council,http://opendatacommunities.org/id/district-council/eden,Financial Services Manager,Emergency Planning and Works,Grants and contributions,THE RATE PAYER,40235941,13/05/20,181749,10000,COVID 19 SMALL BUSINESS GRANT
Eden District Council,http://opendatacommunities.org/id/district-council/eden,Financial Services Manager,Emergency Planning and Works,Grants and contributions,THE RATE PAYER,40236418,13/05/20,181750,10000,COVID 19 SMALL BUSINESS GRANT
Eden District Council,http://opendatacommunities.org/id/district-council/eden,Financial Services Manager,Emergency Planning and Works,Grants and contributions,Typhon Treatment Systems Ltd,40239417,13/05/20,181751,10000,COVID 19 SMALL BUSINESS GRANT
Eden District Council,http://opendatacommunities.org/id/district-council/eden,Financial Services Manager,Emergency Planning and Works,Grants and contributions,THE RATE PAYER,40243225,13/05/20,181752,10000,COVID 19 SMALL BUSINESS GRANT
Eden District Council,http://opendatacommunities.org/id/district-council/eden,Financial Services Manager,Emergency Planning and Works,Grants and contributions,Stybarrow Cottage,40246576,13/05/20,181753,10000,COVID 19 SMALL BUSINESS GRANT
Eden District Council,http://opendatacommunities.org/id/district-council/eden,Financial Services Manager,Emergency Planning and Works,Grants and contributions,P Fleming Joinery,40247043,13/05/20,181754,10000,COVID 19 SMALL BUSINESS GRANT
Eden District Council,http://opendatacommunities.org/id/district-council/eden,Financial Services Manager,Emergency Planning and Works,Grants and contributions,SCOTTISH MIDLAND CO-OP LTD (SCOTMID),40210386,15/05/20,181807,25000,COVID 19 SMALL BUSINESS GRANT
Eden District Council,http://opendatacommunities.org/id/district-council/eden,Financial Services Manager,Emergency Planning and Works,Grants and contributions,Aster Cottage,40231260,15/05/20,181808,10000,COVID 19 SMALL BUSINESS GRANT
Eden District Council,http://opendatacommunities.org/id/district-council/eden,Financial Services Manager,Emergency Planning and Works,Grants and contributions,TEMPLE SOWERBY MEMORIAL HALL,40053118,15/05/20,181809,10000,COVID 19 SMALL BUSINESS GRANT
Eden District Council,http://opendatacommunities.org/id/district-council/eden,Financial Services Manager,Emergency Planning and Works,Grants and contributions,THE RATE PAYER,40238971,15/05/20,181810,10000,COVID 19 SMALL BUSINESS GRANT
Eden District Council,http://opendatacommunities.org/id/district-council/eden,Financial Services Manager,Emergency Planning and Works,Grants and contributions,Shap Local History Society,40174558,15/05/20,181811,10000,COVID 19 SMALL BUSINESS GRANT
Eden District Council,http://opendatacommunities.org/id/district-council/eden,Financial Services Manager,Emergency Planning and Works,Grants and contributions,Blencowe Scramblers,40162593,15/05/20,181812,10000,COVID 19 SMALL BUSINESS GRANT
Eden District Council,http://opendatacommunities.org/id/district-council/eden,Financial Services Manager,Emergency Planning and Works,Grants and contributions,Cleveland Mountaineering Centre,40042071,15/05/20,181813,10000,COVID 19 SMALL BUSINESS GRANT
Eden District Council,http://opendatacommunities.org/id/district-council/eden,Financial Services Manager,Emergency Planning and Works,Grants and contributions,Penrith Lawn Tennis Club,40047304,15/05/20,181814,10000,COVID 19 SMALL BUSINESS GRANT
Eden District Council,http://opendatacommunities.org/id/district-council/eden,Financial Services Manager,Emergency Planning and Works,Grants and contributions,Great Salkeld Village Hall,40048932,15/05/20,181815,10000,COVID 19 SMALL BUSINESS GRANT
Eden District Council,http://opendatacommunities.org/id/district-council/eden,Financial Services Manager,Emergency Planning and Works,Grants and contributions,SKELTON BOWLING CLUB,40107084,15/05/20,181816,10000,COVID 19 SMALL BUSINESS GRANT
Eden District Council,http://opendatacommunities.org/id/district-council/eden,Financial Services Manager,Emergency Planning and Works,Grants and contributions,THE RATE PAYER,40241052,15/05/20,181817,10000,COVID 19 SMALL BUSINESS GRANT
Eden District Council,http://opendatacommunities.org/id/district-council/eden,Financial Services Manager,Emergency Planning and Works,Grants and contributions,Ormside Village Hall,40041313,15/05/20,181818,10000,COVID 19 SMALL BUSINESS GRANT
Eden District Council,http://opendatacommunities.org/id/district-council/eden,Financial Services Manager,Emergency Planning and Works,Grants and contributions,chapel farm,40108209,15/05/20,181819,10000,COVID 19 SMALL BUSINESS GRANT
Eden District Council,http://opendatacommunities.org/id/district-council/eden,Financial Services Manager,Emergency Planning and Works,Grants and contributions,Eden Bridge Enterprises Limited,40163411,15/05/20,181820,10000,COVID 19 SMALL BUSINESS GRANT
Eden District Council,http://opendatacommunities.org/id/district-council/eden,Financial Services Manager,Emergency Planning and Works,Grants and contributions,H Pigney & Son,40150682,15/05/20,181821,25000,COVID 19 SMALL BUSINESS GRANT
Eden District Council,http://opendatacommunities.org/id/district-council/eden,Financial Services Manager,Emergency Planning and Works,Grants and contributions,Eden Mind LTD (Carlisle Eden Mind),40184944,15/05/20,181822,10000,COVID 19 SMALL BUSINESS GRANT
Eden District Council,http://opendatacommunities.org/id/district-council/eden,Financial Services Manager,Emergency Planning and Works,Grants and contributions,Winton Parish Hall Committee,40039389,15/05/20,181823,10000,COVID 19 SMALL BUSINESS GRANT
Eden District Council,http://opendatacommunities.org/id/district-council/eden,Financial Services Manager,Emergency Planning and Works,Grants and contributions,THE RATE PAYER,40104511,15/05/20,181824,10000,COVID 19 SMALL BUSINESS GRANT
Eden District Council,http://opendatacommunities.org/id/district-council/eden,Financial Services Manager,Emergency Planning and Works,Grants and contributions,THE RATE PAYER,40128302,15/05/20,181825,10000,COVID 19 SMALL BUSINESS GRANT
Eden District Council,http://opendatacommunities.org/id/district-council/eden,Financial Services Manager,Emergency Planning and Works,Grants and contributions,Kirkby Stephen Junior Football Club,40149880,15/05/20,181826,10000,COVID 19 SMALL BUSINESS GRANT
Eden District Council,http://opendatacommunities.org/id/district-council/eden,Financial Services Manager,Emergency Planning and Works,Grants and contributions,073064 Swallow Barn,40238001,15/05/20,181827,10000,COVID 19 SMALL BUSINESS GRANT
Eden District Council,http://opendatacommunities.org/id/district-council/eden,Financial Services Manager,Emergency Planning and Works,Grants and contributions,THE RATE PAYER,40247012,15/05/20,181828,10000,COVID 19 SMALL BUSINESS GRANT
Eden District Council,http://opendatacommunities.org/id/district-council/eden,Financial Services Manager,Emergency Planning and Works,Grants and contributions,Park Farm Stud,40206219,15/05/20,181829,10000,COVID 19 SMALL BUSINESS GRANT
Eden District Council,http://opendatacommunities.org/id/district-council/eden,Financial Services Manager,Emergency Planning and Works,Grants and contributions,THE RATE PAYER,40165059,15/05/20,181830,10000,COVID 19 SMALL BUSINESS GRANT
Eden District Council,http://opendatacommunities.org/id/district-council/eden,Financial Services Manager,Emergency Planning and Works,Grants and contributions,Bank Cottage,40239486,15/05/20,181831,10000,COVID 19 SMALL BUSINESS GRANT
Eden District Council,http://opendatacommunities.org/id/district-council/eden,Financial Services Manager,Emergency Planning and Works,Grants and contributions,Communications Plus Ltd,40223757,15/05/20,181832,25000,COVID 19 SMALL BUSINESS GRANT
Eden District Council,http://opendatacommunities.org/id/district-council/eden,Financial Services Manager,Emergency Planning and Works,Grants and contributions,Mark Close Farmhouse,40139524,15/05/20,181833,10000,COVID 19 SMALL BUSINESS GRANT
Eden District Council,http://opendatacommunities.org/id/district-council/eden,Financial Services Manager,Emergency Planning and Works,Grants and contributions,THE RATE PAYER,40247265,15/05/20,181834,10000,COVID 19 SMALL BUSINESS GRANT
Eden District Council,http://opendatacommunities.org/id/district-council/eden,Financial Services Manager,Emergency Planning and Works,Grants and contributions,Eden Mind ltd (Carlisle Eden Mind),40212764,15/05/20,181835,10000,COVID 19 SMALL BUSINESS GRANT
Eden District Council,http://opendatacommunities.org/id/district-council/eden,Financial Services Manager,Emergency Planning and Works,Grants and contributions,Culgaith Institute Trustees,40048116,15/05/20,181836,10000,COVID 19 SMALL BUSINESS GRANT
Eden District Council,http://opendatacommunities.org/id/district-council/eden,Technical Services Manager,Eden Leisure Centre & Appleby Swimming P,Building Maintenance - Leisure,GREENFIELDS HEAT & POWER LTD,GRE035,18/05/20,181838,12612,Swimming Pool Lighting
Eden District Council,http://opendatacommunities.org/id/district-council/eden,Information Technology Manager,Information Technology,Software � maintenance,WATERFORD TECHNOLOGIES LTD,WAT028,22/05/20,180349,4438,COMPLYKEY ANNUAL RENEWAL
Eden District Council,http://opendatacommunities.org/id/district-council/eden,Environmental Services,Environmental Services,Agency Staff,G2 RECRUITMENT SOLUTIONS,G2R001,22/05/20,181757,924,TIME SHEET W/E 10.04.20
Eden District Council,http://opendatacommunities.org/id/district-council/eden,Technical Services Manager,Administrative Buildings,Building works,ELECTRICITY NORTH WEST LTD,ELE005,22/05/20,181759,926,LAMP TRAN BURNSIDE NENTHEAD
Eden District Council,http://opendatacommunities.org/id/district-council/eden,Technical Services Manager,Footway Lighting,FL Day Works & schedule rates,ELECTRICITY NORTH WEST LTD,ELE005,22/05/20,181760,624,LAMP DISC TEBAY
Eden District Council,http://opendatacommunities.org/id/district-council/eden,Technical Services Manager,Administrative Buildings,Building works,ELECTRICITY NORTH WEST LTD,ELE005,22/05/20,181761,926,LAMP TRAN OLD VICARAGE ORTON
Eden District Council,http://opendatacommunities.org/id/district-council/eden,Financial Services Manager,Financial Services,Agency Staff,CIPFA PENNA,CIP013,22/05/20,181794,16720,INTERIM MANAGEMENT SERVICES APR20
Eden District Council,http://opendatacommunities.org/id/district-council/eden,Financial Services Manager,Financial Services,Internal Audit,TIAA LTD,TIA001,22/05/20,179660,5900,LAND &PROP MANAGEMENT -BUSINESS RATES
Eden District Council,http://opendatacommunities.org/id/district-council/eden,Financial Services Manager,Financial Services,Internal Audit,TIAA LTD,TIA001,22/05/20,181384,5900,2019/20 BENEFITS
Eden District Council,http://opendatacommunities.org/id/district-council/eden,Planning Policy Manager,Local Plans & Policy,Professional fees,LAMBERT SMITH HAMPTON,LAM009,22/05/20,181593,8589,LAND/PREMISES STUDY
Eden District Council,http://opendatacommunities.org/id/district-council/eden,Technical Services Manager,Administrative Buildings,Planned Maintenance,RIBA ENTERPRISES LTD,RIB001,22/05/20,181597,1275,NBS BUILDING ABRIDGED STAND ALONE
Eden District Council,http://opendatacommunities.org/id/district-council/eden,Financial Services Manager,Financial Services,Balance Sheet entry BS,DYNAMIC JOINERY LTD,DYN004,22/05/20,181617,864.5,EDEN ROOM SKIRTING
Eden District Council,http://opendatacommunities.org/id/district-council/eden,Information Technology Manager,Information Technology,Printers Contract,Konica Minolta Business Solutions UK Limited,KON003,22/05/20,178893,2276.9,BIZHUB
Eden District Council,http://opendatacommunities.org/id/district-council/eden,Information Technology Manager,Information Technology,Printers Contract,Konica Minolta Business Solutions UK Limited,KON003,22/05/20,179658,3393.98,BIZ HUB
Eden District Council,http://opendatacommunities.org/id/district-council/eden,Environmental Services,Homelessness,Accommodation,EDEN HOUSING ASSOCIATION LTD,EDE001,22/05/20,180886,71660.85,QUARTER 4 INVOICE HOMELESS
Eden District Council,http://opendatacommunities.org/id/district-council/eden,Commercial Services Manager,Community Development & Engagement,Community Fund,GLENRIDDING PUBLIC HALL,GLE001,22/05/20,180944,7125,FIN PAYMENT 75% EDC COMM FUND AWARD
Eden District Council,http://opendatacommunities.org/id/district-council/eden,Financial Services Manager,Emergency Planning and Works,Professional fees,J2BTC LTD,J2B001,22/05/20,181213,900,20 PTO 24 aPRIL 20
Eden District Council,http://opendatacommunities.org/id/district-council/eden,Commercial Services Manager,Community Development & Engagement,Community Fund,APPLEBY TOWN COUNCIL,APP001,22/05/20,181217,5625,EDEN COMMUNITY FUND AWARD
Eden District Council,http://opendatacommunities.org/id/district-council/eden,Technical Services Manager,Vehicle Parking Off Street,Winter Gritting,CUMBRIA COUNTY COUNCIL,CCC002,22/05/20,181257,26715.52,WINTER APPLICATIONS19/20 CAR PARKS
Eden District Council,http://opendatacommunities.org/id/district-council/eden,Transformation & Customers Head of,Corporate Services,Agency Staff,INTRO PR . SOCIAL MEDIA . CONTENT,INT014,22/05/20,181385,4200,APRIL 20 PR
Eden District Council,http://opendatacommunities.org/id/district-council/eden,Revenue/Benefits Manager,Corporate Costs,Contribution by EDC,PENRITH B I D COMPANY LTD,PEN085,22/05/20,181592,20000,ADVANCED BID LEVY
Eden District Council,http://opendatacommunities.org/id/district-council/eden,Financial Services Manager,Corporate Costs,Professional fees,ALLERDALE BOROUGH COUNCIL,ALL002,22/05/20,181598,800,ELEARNIN ENTERPRISE LICENCE 20/21
Eden District Council,http://opendatacommunities.org/id/district-council/eden,Financial Services Manager,Emergency Planning and Works,Advertising,BARON MEDIA LTD,CUM001,22/05/20,181603,900,CORONA ADVERT 25.04.20
Eden District Council,http://opendatacommunities.org/id/district-council/eden,Financial Services Manager,Emergency Planning and Works,Professional fees,J2BTC LTD,J2B001,22/05/20,181613,675,TIME SHEET W/E 09.04.20
Eden District Council,http://opendatacommunities.org/id/district-council/eden,Environmental Services,Community Wardens,Dog Contract Collection,AMEY PLC,TFE001,22/05/20,181616,1013.32,STRAY DOGS MAR20
Eden District Council,http://opendatacommunities.org/id/district-council/eden,Planning Services,Planning Services,Subscriptions & levies,HAYMARKET MEDIA GROUP LTD,HAY019,22/05/20,181756,3160,DCP ONLINE RENEWAL
Eden District Council,http://opendatacommunities.org/id/district-council/eden,Technical Services Manager,Cemeteries,GM External Contractors,NORTH WEST ARBORICULTURAL SERVICES LTD,NOR066,22/05/20,181758,515,GARRIGILL CEMETERY
Eden District Council,http://opendatacommunities.org/id/district-council/eden,Technical Services Manager,Cemeteries,ADHOC WORKS FOR BURIALS,AMEY PLC,TFE001,22/05/20,181786,2621.53,GROUNDS MAINTENANCE
Eden District Council,http://opendatacommunities.org/id/district-council/eden,Financial Services Manager,Emergency Planning and Works,Grants and contributions,THE RATE PAYER,WOO020,22/05/20,181840,500,FLOOD GRANT
Eden District Council,http://opendatacommunities.org/id/district-council/eden,Financial Services Manager,Emergency Planning and Works,Grants and contributions,THE RATE PAYER,KIT003,22/05/20,181841,500,FLOOD GRANT
Eden District Council,http://opendatacommunities.org/id/district-council/eden,Financial Services Manager,Emergency Planning and Works,Grants and contributions,THE RATE PAYER,NEW043,22/05/20,181842,500,FLOOD GRANT
Eden District Council,http://opendatacommunities.org/id/district-council/eden,Financial Services Manager,Emergency Planning and Works,Grants and contributions,THE RATE PAYER,FRA003,22/05/20,181843,500,FLOOD GRANT
Eden District Council,http://opendatacommunities.org/id/district-council/eden,Financial Services Manager,Emergency Planning and Works,Grants and contributions,Workshop,40181464,18/05/20,181844,10000,COVID 19 SMALL BUSINESS GRANT
Eden District Council,http://opendatacommunities.org/id/district-council/eden,Financial Services Manager,Emergency Planning and Works,Grants and contributions,High Mill House Skirsgill Lane Eamont Bridge Penrith CA10 2BQ,40236487,18/05/20,181845,10000,COVID 19 SMALL BUSINESS GRANT
Eden District Council,http://opendatacommunities.org/id/district-council/eden,Financial Services Manager,Emergency Planning and Works,Grants and contributions,Crosby Ravensworth Village Hall,40051693,18/05/20,181846,10000,COVID 19 SMALL BUSINESS GRANT
Eden District Council,http://opendatacommunities.org/id/district-council/eden,Financial Services Manager,Emergency Planning and Works,Grants and contributions,THE NICHOLLS MEMORIAL HALL,40045353,18/05/20,181847,10000,COVID 19 SMALL BUSINESS GRANT
Eden District Council,http://opendatacommunities.org/id/district-council/eden,Financial Services Manager,Emergency Planning and Works,Grants and contributions,TAN,40228967,18/05/20,181848,10000,COVID 19 SMALL BUSINESS GRANT
Eden District Council,http://opendatacommunities.org/id/district-council/eden,Financial Services Manager,Emergency Planning and Works,Grants and contributions,Wetheral Cottages,40213415,18/05/20,181849,25000,COVID 19 SMALL BUSINESS GRANT
Eden District Council,http://opendatacommunities.org/id/district-council/eden,Financial Services Manager,Emergency Planning and Works,Grants and contributions,THE RATE PAYER,40119094,18/05/20,181850,10000,COVID 19 SMALL BUSINESS GRANT
Eden District Council,http://opendatacommunities.org/id/district-council/eden,Financial Services Manager,Emergency Planning and Works,Grants and contributions,2 Station View Longmarton,40243973,18/05/20,181851,10000,COVID 19 SMALL BUSINESS GRANT
Eden District Council,http://opendatacommunities.org/id/district-council/eden,Financial Services Manager,Emergency Planning and Works,Grants and contributions,B SMITH JOINERY,40142513,18/05/20,181852,10000,COVID 19 SMALL BUSINESS GRANT
Eden District Council,http://opendatacommunities.org/id/district-council/eden,Financial Services Manager,Emergency Planning and Works,Grants and contributions,Musgrave Parish Institute,40050676,18/05/20,181853,10000,COVID 19 SMALL BUSINESS GRANT
Eden District Council,http://opendatacommunities.org/id/district-council/eden,Financial Services Manager,Emergency Planning and Works,Grants and contributions,Uter Pendragon Lodge 3481,40057431,18/05/20,181854,10000,COVID 19 SMALL BUSINESS GRANT
Eden District Council,http://opendatacommunities.org/id/district-council/eden,Financial Services Manager,Emergency Planning and Works,Grants and contributions,THE RATE PAYER,40227322,18/05/20,181855,10000,COVID 19 SMALL BUSINESS GRANT
Eden District Council,http://opendatacommunities.org/id/district-council/eden,Financial Services Manager,Emergency Planning and Works,Grants and contributions,Dairy Cottage,40236449,18/05/20,181856,10000,COVID 19 SMALL BUSINESS GRANT
Eden District Council,http://opendatacommunities.org/id/district-council/eden,Financial Services Manager,Emergency Planning and Works,Grants and contributions,THE RATE PAYER,40169723,18/05/20,181857,10000,COVID 19 SMALL BUSINESS GRANT
Eden District Council,http://opendatacommunities.org/id/district-council/eden,Financial Services Manager,Emergency Planning and Works,Grants and contributions,Lakeland Travel Limited,40129725,18/05/20,181858,10000,COVID 19 SMALL BUSINESS GRANT
Eden District Council,http://opendatacommunities.org/id/district-council/eden,Financial Services Manager,Emergency Planning and Works,Grants and contributions,Pizza Piatto,40147457,18/05/20,181859,10000,COVID 19 SMALL BUSINESS GRANT
Eden District Council,http://opendatacommunities.org/id/district-council/eden,Financial Services Manager,Corporate Costs,Unique payments ****,INLAND REVENUE,INL003,29/05/20,181895,880,BENEFITS
Eden District Council,http://opendatacommunities.org/id/district-council/eden,Legal Services Manager,Land Management,Building Maintenance,ENVIRONMENT AGENCY,ENV004,15/05/20,181896,718,EDEN BUSINESS PARK TRADE SITE DRAINAGE ANNUAL DDR
Eden District Council,http://opendatacommunities.org/id/district-council/eden,Transformation & Customers Head of,Central Expenses,Postages,NEOPOST,NEO004,12/05/20,181898,995,Franking Machine Refill
Eden District Council,http://opendatacommunities.org/id/district-council/eden,Transformation & Customers Head of,Central Expenses,Postages,NEOPOST,NEO004,12/05/20,181899,995,Franking Machine Refill
Eden District Council,http://opendatacommunities.org/id/district-council/eden,Transformation & Customers Head of,Central Expenses,Postages,NEOPOST,NEO004,12/05/20,181900,995,Franking Machine Refill
Eden District Council,http://opendatacommunities.org/id/district-council/eden,Technical Services Manager,Financial Services,Balance Sheet entry BS,GREAT NORTH AIR AMBULANCE SERVICE,GRE052,12/05/20,181901,500,GNAAS Donation
Eden District Council,http://opendatacommunities.org/id/district-council/eden,Planning Policy Manager,Local Plans & Policy,Child Care Voucher Scheme,BUSY BEES CHILDCARE VOUCHERS,BUS004,19/05/20,181914,626,childcare vouchers 19/05/2020 ddr
Eden District Council,http://opendatacommunities.org/id/district-council/eden,Financial Services Manager,Emergency Planning and Works,Grants and contributions,THE RATE PAYER,40240257,20/05/20,181896,10000,COVID 19 SMALL BUSINESS GRANT
Eden District Council,http://opendatacommunities.org/id/district-council/eden,Financial Services Manager,Emergency Planning and Works,Grants and contributions,THE RATE PAYER,40178291,20/05/20,181897,25000,COVID 19 SMALL BUSINESS GRANT
Eden District Council,http://opendatacommunities.org/id/district-council/eden,Financial Services Manager,Emergency Planning and Works,Grants and contributions,GLASSONBY AIRFIELD LTD,40148955,20/05/20,181898,10000,COVID 19 SMALL BUSINESS GRANT
Eden District Council,http://opendatacommunities.org/id/district-council/eden,Financial Services Manager,Emergency Planning and Works,Grants and contributions,Blencarn Village Hall Committee,40042750,20/05/20,181899,10000,COVID 19 SMALL BUSINESS GRANT
Eden District Council,http://opendatacommunities.org/id/district-council/eden,Financial Services Manager,Emergency Planning and Works,Grants and contributions,THE RATE PAYER,40202507,20/05/20,181900,10000,COVID 19 SMALL BUSINESS GRANT
Eden District Council,http://opendatacommunities.org/id/district-council/eden,Financial Services Manager,Emergency Planning and Works,Grants and contributions,THE RATE PAYER,40159405,20/05/20,181901,10000,COVID 19 SMALL BUSINESS GRANT
Eden District Council,http://opendatacommunities.org/id/district-council/eden,Financial Services Manager,Emergency Planning and Works,Grants and contributions,THE RATE PAYER,40240738,20/05/20,181902,10000,COVID 19 SMALL BUSINESS GRANT
Eden District Council,http://opendatacommunities.org/id/district-council/eden,Financial Services Manager,Emergency Planning and Works,Grants and contributions,Austen Temple Ltd,40218342,20/05/20,181903,25000,COVID 19 SMALL BUSINESS GRANT
Eden District Council,http://opendatacommunities.org/id/district-council/eden,Financial Services Manager,Emergency Planning and Works,Grants and contributions,THE RATE PAYER,40247388,20/05/20,181904,10000,COVID 19 SMALL BUSINESS GRANT
Eden District Council,http://opendatacommunities.org/id/district-council/eden,Financial Services Manager,Emergency Planning and Works,Grants and contributions,EDEN CARERS,EDE044,18/05/20,181957,5000,EDEN COVID SUPPORT FUND
Eden District Council,http://opendatacommunities.org/id/district-council/eden,Financial Services Manager,Emergency Planning and Works,Grants and contributions,EDEN VALLEY HOSPICE,EDE003,18/05/20,181958,5000,EDEN COVID SUPPORT FUND
Eden District Council,http://opendatacommunities.org/id/district-council/eden,Financial Services Manager,Emergency Planning and Works,Grants and contributions,CARLISLE EDEN MIND LTD,CAR068,18/05/20,181959,5000,EDEN COVID SUPPORT FUND
Eden District Council,http://opendatacommunities.org/id/district-council/eden,Financial Services Manager,Emergency Planning and Works,Grants and contributions,AGE UK CARLISLE & EDEN,AGE001,18/05/20,181960,5000,EDEN COVID SUPPORT FUND
Eden District Council,http://opendatacommunities.org/id/district-council/eden,Financial Services Manager,Emergency Planning and Works,Grants and contributions,CARLISLE & EDEN CITIZENS ADVICE BUREAU,EDE018,18/05/20,181961,5000,EDEN COVID SUPPORT FUND
Eden District Council,http://opendatacommunities.org/id/district-council/eden,Financial Services Manager,Emergency Planning and Works,Grants and contributions,EAST CUMBRIA FAMILY SUPPORT ASSOCIATION,EAS005,18/05/20,181962,5000,EDEN COVID SUPPORT FUND
Eden District Council,http://opendatacommunities.org/id/district-council/eden,Financial Services Manager,Emergency Planning and Works,Grants and contributions,HOSPICE AT HOME CARLISLE & NORTH LAKELAND,HOS001,18/05/20,181963,5000,EDEN COVID SUPPORT FUND
Eden District Council,http://opendatacommunities.org/id/district-council/eden,Financial Services Manager,Emergency Planning and Works,Grants and contributions,BARNARDOS EDEN,BAR020,18/05/20,181964,5000,EDEN COVID SUPPORT FUND
Eden District Council,http://opendatacommunities.org/id/district-council/eden,Financial Services Manager,Emergency Planning and Works,Grants and contributions,EDEN MENCAP SOCIETY,EDE048,18/05/20,181965,5000,EDEN COVID SUPPORT FUND
Eden District Council,http://opendatacommunities.org/id/district-council/eden,Financial Services Manager,Emergency Planning and Works,Grants and contributions,EDEN DISTRICT CAP DEBT CENTRE,EDE086,18/05/20,181966,5000,EDEN COVID SUPPORT FUND
Eden District Council,http://opendatacommunities.org/id/district-council/eden,Financial Services Manager,Emergency Planning and Works,Grants and contributions,THE RATE PAYER,40237862,22/05/20,181999,10000,COVID 19 SMALL BUSINESS GRANT
Eden District Council,http://opendatacommunities.org/id/district-council/eden,Financial Services Manager,Emergency Planning and Works,Grants and contributions,RAM Properties (North) Ltd,40247357,22/05/20,182000,10000,COVID 19 SMALL BUSINESS GRANT
Eden District Council,http://opendatacommunities.org/id/district-council/eden,Financial Services Manager,Emergency Planning and Works,Grants and contributions,THE RATE PAYER,40229489,22/05/20,182001,10000,COVID 19 SMALL BUSINESS GRANT
Eden District Council,http://opendatacommunities.org/id/district-council/eden,Financial Services Manager,Emergency Planning and Works,Grants and contributions,THE RATE PAYER,40241526,22/05/20,182002,10000,COVID 19 SMALL BUSINESS GRANT
Eden District Council,http://opendatacommunities.org/id/district-council/eden,Financial Services Manager,Emergency Planning and Works,Grants and contributions,Beech House,40247418,22/05/20,182003,10000,COVID 19 SMALL BUSINESS GRANT
Eden District Council,http://opendatacommunities.org/id/district-council/eden,Financial Services Manager,Emergency Planning and Works,Grants and contributions,Castlegate Development Ltd,40247395,22/05/20,182004,10000,COVID 19 SMALL BUSINESS GRANT
Eden District Council,http://opendatacommunities.org/id/district-council/eden,Financial Services Manager,Emergency Planning and Works,Grants and contributions,THE RATE PAYER,40244297,22/05/20,182005,10000,COVID 19 SMALL BUSINESS GRANT
Eden District Council,http://opendatacommunities.org/id/district-council/eden,Financial Services Manager,Emergency Planning and Works,Grants and contributions,Redblast Investments Limited,40245689,22/05/20,182006,10000,COVID 19 SMALL BUSINESS GRANT
Eden District Council,http://opendatacommunities.org/id/district-council/eden,Financial Services Manager,Emergency Planning and Works,Grants and contributions,CaravanHigh Row Farm,40244709,22/05/20,182007,10000,COVID 19 SMALL BUSINESS GRANT
Eden District Council,http://opendatacommunities.org/id/district-council/eden,Financial Services Manager,Emergency Planning and Works,Grants and contributions,8 Bridge street,40237497,22/05/20,182008,10000,COVID 19 SMALL BUSINESS GRANT
Eden District Council,http://opendatacommunities.org/id/district-council/eden,Financial Services Manager,Emergency Planning and Works,Grants and contributions,t/a fonefix,40209140,22/05/20,182009,10000,COVID 19 SMALL BUSINESS GRANT
Eden District Council,http://opendatacommunities.org/id/district-council/eden,Financial Services Manager,Emergency Planning and Works,Grants and contributions,THE RATE PAYER,40056216,22/05/20,182010,10000,COVID 19 SMALL BUSINESS GRANT
Eden District Council,http://opendatacommunities.org/id/district-council/eden,Information Technology Manager,Committee and Member Costs,Supplies general,LEGACY TELECOM LTD,LEG001,29/05/20,181588,1410,BINAURAL HEADSETS
Eden District Council,http://opendatacommunities.org/id/district-council/eden,Environmental Services,Housing Delivery,Professional fees,OVE ARUP & PARTNERS LTD,OVE002,29/05/20,181755,3195,HEAT NETWORK MANAGEMENT SERVICES
Eden District Council,http://opendatacommunities.org/id/district-council/eden,Technical Services Manager,Administrative Buildings,Building works,ELECTRICITY NORTH WEST LTD,ELE005,29/05/20,181762,926,LAMP TRAN CHAPEL VIEW CLIBURN
Eden District Council,http://opendatacommunities.org/id/district-council/eden,Technical Services Manager,Administrative Buildings,Building works,ELECTRICITY NORTH WEST LTD,ELE005,29/05/20,181763,926,LAMP TRAN RIVERSIDE GOLG CLUB RAVENSTON
Eden District Council,http://opendatacommunities.org/id/district-council/eden,Technical Services Manager,Administrative Buildings,Building works,ELECTRICITY NORTH WEST LTD,ELE005,29/05/20,181764,926,LAMP TRAN BAR COTT MORLAND
Eden District Council,http://opendatacommunities.org/id/district-council/eden,Environmental Services,1996 Mandatory Renovation Grants,Capital grants,PPM LTD,PPM001,29/05/20,181776,5700.63,INT PAYMENT GRANT REF 190030
Eden District Council,http://opendatacommunities.org/id/district-council/eden,Planning Policy Manager,Local Plans & Policy,Professional fees,YORKSHIRE DALES NATIONAL PARK AUTHORITY,YOR003,29/05/20,177374,3033,CONTRIBUTIONNP SOCIO STUDY
Eden District Council,http://opendatacommunities.org/id/district-council/eden,Revenue/Benefits Manager,Benefits,Software � maintenance,SOUTH LAKELAND DISTRICT COUNCIL,SOU006,29/05/20,179663,21142,RECHARGE 40% CAPITA SOFTWARE MAIN 20/21
Eden District Council,http://opendatacommunities.org/id/district-council/eden,Chief Executive's,One Eden Programme,Professional fees,PEOPLE DECISIONS,PEO002,29/05/20,181470,3500,HR WORKSTREAM ONE EDEN
Eden District Council,http://opendatacommunities.org/id/district-council/eden,Environmental Services,Other Environmental Health,Professional fees,UNITED UTILITIES WATER PLC,UNI024,29/05/20,181618,1491.3,INCOME LABS FEB 20
Eden District Council,http://opendatacommunities.org/id/district-council/eden,Environmental Services,Community Wardens,Dog Contract O.O.H retainer,AMEY PLC,TFE001,29/05/20,181768,970.24,STRAY DOG KENNELLING APR20
Eden District Council,http://opendatacommunities.org/id/district-council/eden,Revenue/Benefits Manager,Parish Precept,Unique payments ****,KABER PARISH COUNCIL,KAB001,29/05/20,181775,1603,PARCEPT PRECEPT 2020-21
Eden District Council,http://opendatacommunities.org/id/district-council/eden,Financial Services Manager,Emergency Planning and Works,Professional fees,J2BTC LTD,J2B001,29/05/20,181778,600,TIME SHEET W/E 07.05.20
Eden District Council,http://opendatacommunities.org/id/district-council/eden,Environmental Services,Community Wardens,Dog Contract O.O.H retainer,AMEY PLC,TFE001,29/05/20,181784,970.24,STRAY DOG KENNELLING MAY20
Eden District Council,http://opendatacommunities.org/id/district-council/eden,Revenue/Benefits Manager,Benefits,Software � purchase,SOUTH LAKELAND DISTRICT COUNCIL,SOU006,29/05/20,181788,5484.31,RECHARGE CAPITA DWP LA DATA
Eden District Council,http://opendatacommunities.org/id/district-council/eden,Revenue/Benefits Manager,Collection of Local Taxation,Software � maintenance,SOUTH LAKELAND DISTRICT COUNCIL,SOU006,29/05/20,181789,4300,RECHARGE 50% COVID19 RETAIL DISC 20-21
Eden District Council,http://opendatacommunities.org/id/district-council/eden,Technical Services Manager,Refuse Collection,Contract refuse collection,AMEY PLC,TFE001,29/05/20,181798,75030.52,CERT NO M-RC97
Eden District Council,http://opendatacommunities.org/id/district-council/eden,Environmental Services,Appleby Fair,Street Cleaning Contract,AMEY PLC,TFE001,29/05/20,181799,19044.45,CERT NO MC-SC97
Eden District Council,http://opendatacommunities.org/id/district-council/eden,Technical Services Manager,Recycling,Em Wks Storage,AMEY PLC,TFE001,29/05/20,181800,551.12,CERT NO MEW97
Eden District Council,http://opendatacommunities.org/id/district-council/eden,Environmental Services,Housing Delivery,Professional fees,SOUTH LAKELAND DISTRICT COUNCIL,SOU006,29/05/20,181801,1325.1,CONTRIBUTION CUMBRIA CHOICE 20-21
Eden District Council,http://opendatacommunities.org/id/district-council/eden,Environmental Services,Housing Delivery,Professional fees,SOUTH LAKELAND DISTRICT COUNCIL,SOU006,29/05/20,181802,1500,CONTINGENCY COSTS CUMBRIA CHOICE 20-21
Eden District Council,http://opendatacommunities.org/id/district-council/eden,Environmental Services,Housing Delivery,Professional fees,SOUTH LAKELAND DISTRICT COUNCIL,SOU006,29/05/20,181803,517.83,POL & PEN TESTING CUMBRIA CHOICE 20-21
Eden District Council,http://opendatacommunities.org/id/district-council/eden,Technical Services Manager,Parks and Open Spaces,Ground Maintenance SOR & Dayworks,NORTH WEST ARBORICULTURAL SERVICES LTD,NOR066,29/05/20,181805,1990,JENKINS FIELD 3 DAYS TREE WORKS
Eden District Council,http://opendatacommunities.org/id/district-council/eden,Environmental Services,Pest Control,Pest Control,RENTOKIL INITIAL PEST CONTROL,REN009,29/05/20,181806,1023.69,PESTS MISC JUN20
Eden District Council,http://opendatacommunities.org/id/district-council/eden,Technical Services Manager,Administrative Buildings,Rental/Maintenance of Fire Alarm,WESTMORLAND FIRE & SECURITY,WES001,29/05/20,181936,688.41,MAIN CHARGE 01.6.20-31.5.21
Eden District Council,http://opendatacommunities.org/id/district-council/eden,Revenue/Benefits Manager,Benefits,Software � purchase,SOUTH LAKELAND DISTRICT COUNCIL,SOU006,29/05/20,181943,2101.08,RECHARGE 50% COVID19 DWP FUND SOFTWARE
Eden District Council,http://opendatacommunities.org/id/district-council/eden,Technical Services Manager,Land Charges,Professional fees,CUMBRIA COUNTY COUNCIL,CCC002,29/05/20,181951,1211,EDEN SEARCHES MAR 20
Eden District Council,http://opendatacommunities.org/id/district-council/eden,Technical Services Manager,Parks and Open Spaces,GM External Contractors,NORTH WEST ARBORICULTURAL SERVICES LTD,NOR066,29/05/20,181954,590,PRESSURE WASHING MOUNT PLEASANT TEBAY PL
Eden District Council,http://opendatacommunities.org/id/district-council/eden,Technical Services Manager,Cemeteries,Grounds Maint Contract additional works,NORTH WEST ARBORICULTURAL SERVICES LTD,NOR066,29/05/20,181956,995,ST AUGUSTINES ALSTON STORM DAMAGE TREES
Eden District Council,http://opendatacommunities.org/id/district-council/eden,Technical Services Manager,Parks and Open Spaces,GM External Contractors,NORTH WEST ARBORICULTURAL SERVICES LTD,NOR066,29/05/20,181969,595,VARIOUS TREE WORKS
Eden District Council,http://opendatacommunities.org/id/district-council/eden,Financial Services Manager,Treasury Management,Professional fees,ARLINGCLOSE LTD,ARL002,29/05/20,181984,1950,ESG & RESPONSIBLE UNIT REPORT
Eden District Council,http://opendatacommunities.org/id/district-council/eden,Financial Services Manager,Emergency Planning and Works,Grants and contributions,THE RATE PAYER,40235927,27/05/20,182036,10000,COVID 19 SMALL BUSINESS GRANT
Eden District Council,http://opendatacommunities.org/id/district-council/eden,Financial Services Manager,Emergency Planning and Works,Grants and contributions,Byre Cottage Langwathby,40161675,27/05/20,182037,10000,COVID 19 SMALL BUSINESS GRANT
Eden District Council,http://opendatacommunities.org/id/district-council/eden,Financial Services Manager,Emergency Planning and Works,Grants and contributions,Katy Edgars Outside Catering Ltd,40154936,27/05/20,182038,10000,COVID 19 SMALL BUSINESS GRANT
Eden District Council,http://opendatacommunities.org/id/district-council/eden,Financial Services Manager,Emergency Planning and Works,Grants and contributions,Katy Edgars Outside Catering Ltd,40165219,27/05/20,182039,10000,COVID 19 SMALL BUSINESS GRANT
Eden District Council,http://opendatacommunities.org/id/district-council/eden,Financial Services Manager,Emergency Planning and Works,Grants and contributions,THE RATE PAYER,40235828,27/05/20,182040,10000,COVID 19 SMALL BUSINESS GRANT
Eden District Council,http://opendatacommunities.org/id/district-council/eden,Financial Services Manager,Emergency Planning and Works,Grants and contributions,Rumney Mead Boathouse and Harbour,40029177,27/05/20,182041,10000,COVID 19 SMALL BUSINESS GRANT
Eden District Council,http://opendatacommunities.org/id/district-council/eden,Financial Services Manager,Emergency Planning and Works,Grants and contributions,Grey Walls Patterdale Penrith. CA11 )NP,40219727,27/05/20,182042,10000,COVID 19 SMALL BUSINESS GRANT
Eden District Council,http://opendatacommunities.org/id/district-council/eden,Financial Services Manager,Emergency Planning and Works,Grants and contributions,Greystoke Village Hall,40052979,27/05/20,182043,10000,COVID 19 SMALL BUSINESS GRANT
Eden District Council,http://opendatacommunities.org/id/district-council/eden,Financial Services Manager,Emergency Planning and Works,Grants and contributions,Eden Arts Limited,40211389,27/05/20,182044,10000,COVID 19 SMALL BUSINESS GRANT
Eden District Council,http://opendatacommunities.org/id/district-council/eden,Financial Services Manager,Emergency Planning and Works,Grants and contributions,THE RATE PAYER,40146478,27/05/20,182045,10000,COVID 19 SMALL BUSINESS GRANT
Eden District Council,http://opendatacommunities.org/id/district-council/eden,Financial Services Manager,Emergency Planning and Works,Grants and contributions,THE RATE PAYER,40153001,27/05/20,182046,10000,COVID 19 SMALL BUSINESS GRANT
Eden District Council,http://opendatacommunities.org/id/district-council/eden,Financial Services Manager,Emergency Planning and Works,Grants and contributions,The Ings Threlkeld Keswick CA12 4TB,40173234,27/05/20,182047,10000,COVID 19 SMALL BUSINESS GRANT
Eden District Council,http://opendatacommunities.org/id/district-council/eden,Financial Services Manager,Emergency Planning and Works,Grants and contributions,THE RATE PAYER,40185398,27/05/20,182048,10000,COVID 19 SMALL BUSINESS GRANT
Eden District Council,http://opendatacommunities.org/id/district-council/eden,Financial Services Manager,Emergency Planning and Works,Grants and contributions,KIRKBY STEPHEN BOWLING CLUB,40055459,27/05/20,182049,10000,COVID 19 SMALL BUSINESS GRANT
Eden District Council,http://opendatacommunities.org/id/district-council/eden,Financial Services Manager,Emergency Planning and Works,Grants and contributions,St Michaels Church Institute,40038553,27/05/20,182050,10000,COVID 19 SMALL BUSINESS GRANT
Eden District Council,http://opendatacommunities.org/id/district-council/eden,Financial Services Manager,Emergency Planning and Works,Grants and contributions,Effugium Camping Club,40238643,27/05/20,182051,10000,COVID 19 SMALL BUSINESS GRANT
Eden District Council,http://opendatacommunities.org/id/district-council/eden,Financial Services Manager,Emergency Planning and Works,Grants and contributions,PENDRAGON VETS LTD,40209522,27/05/20,182052,10000,COVID 19 SMALL BUSINESS GRANT
Eden District Council,http://opendatacommunities.org/id/district-council/eden,Financial Services Manager,Emergency Planning and Works,Grants and contributions,THE RATE PAYER,40179645,27/05/20,182053,10000,COVID 19 SMALL BUSINESS GRANT
Eden District Council,http://opendatacommunities.org/id/district-council/eden,Financial Services Manager,Emergency Planning and Works,Grants and contributions,Millhouse Village Hall Committee,40132189,27/05/20,182054,10000,COVID 19 SMALL BUSINESS GRANT
Eden District Council,http://opendatacommunities.org/id/district-council/eden,Financial Services Manager,Emergency Planning and Works,Grants and contributions,53 High Street Kirkby Stephen CA17 4SG,40225265,27/05/20,182055,10000,COVID 19 SMALL BUSINESS GRANT
Eden District Council,http://opendatacommunities.org/id/district-council/eden,Financial Services Manager,Emergency Planning and Works,Advertising,EDEN FM RADIO LTD,EDE060,28/05/20,181720,640,SPONSERSHIP DONATION COVID19
Eden District Council,http://opendatacommunities.org/id/district-council/eden,Financial Services Manager,Emergency Planning and Works,Grants and contributions,King Georges Playing Field,40032708,01/06/20,182088,10000,COVID 19 SMALL BUSINESS GRANT
Eden District Council,http://opendatacommunities.org/id/district-council/eden,Financial Services Manager,Emergency Planning and Works,Grants and contributions,Age UK Carlisle & Eden,40240813,01/06/20,182089,10000,COVID 19 SMALL BUSINESS GRANT
Eden District Council,http://opendatacommunities.org/id/district-council/eden,Financial Services Manager,Emergency Planning and Works,Grants and contributions,Mike Dixon Motors,40184661,01/06/20,182090,10000,COVID 19 SMALL BUSINESS GRANT
Eden District Council,http://opendatacommunities.org/id/district-council/eden,Financial Services Manager,Emergency Planning and Works,Grants and contributions,Age UK Carlisle & Eden,40159894,01/06/20,182091,10000,COVID 19 SMALL BUSINESS GRANT
Eden District Council,http://opendatacommunities.org/id/district-council/eden,Financial Services Manager,Emergency Planning and Works,Grants and contributions,Old Oddfellows Hall,40231178,01/06/20,182092,10000,COVID 19 SMALL BUSINESS GRANT
Eden District Council,http://opendatacommunities.org/id/district-council/eden,Financial Services Manager,Emergency Planning and Works,Grants and contributions,Alston Moor Historical Society,40242482,01/06/20,182093,10000,COVID 19 SMALL BUSINESS GRANT
Eden District Council,http://opendatacommunities.org/id/district-council/eden,Financial Services Manager,Emergency Planning and Works,Grants and contributions,Midtown Cattery,40247579,01/06/20,182094,10000,COVID 19 SMALL BUSINESS GRANT
Eden District Council,http://opendatacommunities.org/id/district-council/eden,Financial Services Manager,Emergency Planning and Works,Grants and contributions,THE RATE PAYER,40208536,01/06/20,182095,10000,COVID 19 SMALL BUSINESS GRANT
Eden District Council,http://opendatacommunities.org/id/district-council/eden,Financial Services Manager,Emergency Planning and Works,Grants and contributions,Absolutely Aldstone house,40235422,01/06/20,182096,10000,COVID 19 SMALL BUSINESS GRANT
Eden District Council,http://opendatacommunities.org/id/district-council/eden,Financial Services Manager,Emergency Planning and Works,Grants and contributions,Gamblesby Community Centre,40070052,01/06/20,182097,10000,COVID 19 SMALL BUSINESS GRANT
Eden District Council,http://opendatacommunities.org/id/district-council/eden,Financial Services Manager,Emergency Planning and Works,Grants and contributions,Flitch Cottage,40104825,01/06/20,182098,10000,COVID 19 SMALL BUSINESS GRANT
Eden District Council,http://opendatacommunities.org/id/district-council/eden,Financial Services Manager,Emergency Planning and Works,Grants and contributions, Bampton Shop & Tearoom,40242987,01/06/20,182099,10000,COVID 19 SMALL BUSINESS GRANT
Eden District Council,http://opendatacommunities.org/id/district-council/eden,Financial Services Manager,Emergency Planning and Works,Grants and contributions,Summer House,40247159,01/06/20,182100,10000,COVID 19 SMALL BUSINESS GRANT
Eden District Council,http://opendatacommunities.org/id/district-council/eden,Financial Services Manager,Emergency Planning and Works,Grants and contributions,The lal nook,40247630,01/06/20,182101,10000,COVID 19 SMALL BUSINESS GRANT
Eden District Council,http://opendatacommunities.org/id/district-council/eden,Financial Services Manager,Emergency Planning and Works,Grants and contributions,THE RATE PAYER,40173463,01/06/20,182102,10000,COVID 19 SMALL BUSINESS GRANT
Eden District Council,http://opendatacommunities.org/id/district-council/eden,Financial Services Manager,Emergency Planning and Works,Grants and contributions,THE RATE PAYER,40088978,01/06/20,182103,10000,COVID 19 SMALL BUSINESS GRANT
Eden District Council,http://opendatacommunities.org/id/district-council/eden,Financial Services Manager,Corporate Costs,Bank charges,Barclays Merchant services,BMS001,12/05/20,206415,2293.61,Merchant Services Charges
